Workbook

Sheet P
A1: Poisson
A2: Poisson Probability Distribution
A3: Discrete Random Variable
A4: Useful in estimating number of occurrences over a specified interval of time or space (minutes or feet/miles)
A5: Examples Random Variable:
A6: # arrivals at car wash in 1 hour
A7: # arrivals at web site in 1 hour
A8: # repairs in 5 miles of city street
A9: ** Often used in waiting line situations when the random variable is # arrivals
A12: If two Properties are met:
A13: 1) The probability of an occurrence is the same for any two intervals of equal length | E13: **link to exponetial
A14: 2) The occurrence or non occurrence in any interval is independent of the occurrence or non occurrence in any other interval
A15: Then the # of occurrences is a random variable described by the Poisson Probability Distribution
A17: Poisson Probability Function
A18: f(x) = (μxe-μ)/x!
A19: f(x) | B19: probability of x occurrences in an interval
A20: μ = expected Value = Mean | B20: Expected Value of Mean # of occurrences in an interval
A21: X = Random Discrete Variable | B21: # of occurrences in interval
A22: x values = 0,1,2,3,…
A23: Mean = Variance
A24: Standard Deviation = SQRT(Mean)
A25: e | B25: =EXP(1) -> 2.718281828 | C25: =FTFormulaText -> =EXP(1)
A26: without upper limit (but the probability is nil in the upper numbers)
A27: When calculating Prob. For different time interval, you must convert the mean arrival rate to the time period: (New Time)/(Old Time)*Mean or (New Length)/(Old Length)*Mean ==> Part/Whole*Mean
A29: Example 1
A30: # arrivals at drive up bank window
A31: assume 1: probability of a car arriving in the same for any two time periods of equal length
A32: assume 1: prob of car arriving is same for any two equal length time periods
A33: assume 2: arrival or nonarrival of a car in any time period is independent of the arrival or nonarrival in any other time period
A34: Assume 2: arrival or nonarrival in 1 time period is independent of arrival or nonarrival in any other period
A36: Time interval | B36: 15 | C36: minutes | E36: x | F36: 0 | G36: 1 | H36: 2 | I36: 3 | J36: 4 | K36: 5 | L36: 6 | M36: 7 | N36: 8 | O36: 9 | P36: 10 | Q36: 11 | R36: 12 | S36: 13 | T36: 14 | U36: 15 | V36: 16 | W36: 17 | X36: 18 | Y36: 19 | Z36: 20 | AA36: 21 | AB36: 22 | AC36: 23 | AD36: 24 | AE36: 25 | AF36: 26 | AG36: 27 | AH36: 28 | AI36: 29 | AJ36: 30
A37: Mean arrival | B37: 10 | C37: cars | E37: P(x) | F37: =_xlfn.POISSON.DIST(F36,$B$37,0) -> 4.539992976e-05 | G37: =_xlfn.POISSON.DIST(G36,$B$37,0) -> 0.0004539992976 | H37: 0.002269996488 | I37: 0.00756665496 | J37: 0.0189166374 | K37: 0.0378332748 | L37: 0.063055458 | M37: 0.09007922572 | N37: 0.1125990321 | O37: 0.1251100357 | P37: 0.1251100357 | Q37: 0.1137363961 | R37: 0.09478033009 | S37: 0.07290794622 | T37: 0.05207710445 | U37: 0.03471806963 | V37: 0.02169879352 | W37: 0.01276399619 | X37: 0.007091108993 | Y37: 0.003732162628 | Z37: 0.001866081314 | AA37: 0.0008886101495 | AB37: 0.0004039137043 | AC37: 0.0001756146541 | AD37: 7.317277252e-05 | AE37: 2.926910901e-05 | AF37: 1.125734962e-05 | AG37: 4.169388748e-06 | AH37: 1.48906741e-06 | AI37: 5.134715207e-07 | AJ37: 1.711571736e-07
A38: Random Variable = | B38: ="# arrivals in "&B36&" minutes"&CHAR(10)&"(Mean = "&B37&" "&C37&")" -> # arrivals in 15 minutes (Mean = 10 cars) | C38: .
A39: x | B39: 5
A40: f(x) = (μxe-μ)/x!
A41: ="P(x="&$B$39&")" -> P(x=5) | B41: =($B$37^B39*EXP(1)^-$B$37)/FACT(B39) -> 0.0378332748
A42: ="P(x="&$B$39&")" -> P(x=5) | B42: =_xlfn.POISSON.DIST(B39,$B$37,0) -> 0.0378332748 | C42: with discrete probability functions 0 = probability = height of column
A43: Example 2
A44: Time interval | B44: 3 | C44: minutes
A45: ="Mean arrival = "&B44&"/"&B36&"*"&B37&" =" -> Mean arrival = 3/15*10 = | B45: =B44/B36*B37 -> 2 | C45: cars | D45: New Mean = (New Time)/(Old Time)*Mean
A46: Random Variable = | B46: ="# arrivals in "&B44&" minutes"&CHAR(10)&"(Mean = "&B45&" "&C45&")" -> # arrivals in 3 minutes (Mean = 2 cars)
A47: x | B47: 1 | E47: x | F47: 0 | G47: 1 | H47: 2 | I47: 3 | J47: 4 | K47: 5 | L47: 6 | M47: 7 | N47: 8 | O47: 9 | P47: 10 | Q47: 11 | R47: 12 | S47: 13 | T47: 14 | U47: 15 | V47: 16 | W47: 17 | X47: 18 | Y47: 19 | Z47: 20 | AA47: 21 | AB47: 22 | AC47: 23 | AD47: 24 | AE47: 25 | AF47: 26 | AG47: 27 | AH47: 28 | AI47: 29 | AJ47: 30
A48: f(x) = (μxe-μ)/x! | E48: P(x) | F48: =_xlfn.POISSON.DIST(F47,$B$45,0) -> 0.1353352832 | G48: =_xlfn.POISSON.DIST(G47,$B$45,0) -> 0.2706705665 | H48: 0.2706705665 | I48: 0.1804470443 | J48: 0.09022352216 | K48: 0.03608940886 | L48: 0.01202980295 | M48: 0.003437086558 | N48: 0.0008592716396 | O48: 0.0001909492532 | P48: 3.818985065e-05 | Q48: 6.943609209e-06 | R48: 1.157268201e-06 | S48: 1.780412618e-07 | T48: 2.543446597e-08 | U48: 3.391262129e-09 | V48: 4.239077661e-10 | W48: 4.98715019e-11 | X48: 5.541277988e-12 | Y48: 5.832924198e-13 | Z48: 5.832924198e-14 | AA48: 5.555165903e-15 | AB48: 5.050150821e-16 | AC48: 4.391435497e-17 | AD48: 3.65952958e-18 | AE48: 2.927623664e-19 | AF48: 2.252018203e-20 | AG48: 1.668161632e-21 | AH48: 1.191544023e-22 | AI48: 8.217544986e-24 | AJ48: 5.478363324e-25
A49: ="P(x="&$B$47&")" -> P(x=1) | B49: =(B45^B47*EXP(1)^-B45)/FACT(B47) -> 0.2706705665
A50: ="P(x="&$B$47&")" -> P(x=1) | B50: =_xlfn.POISSON.DIST(B47,B45,0) -> 0.2706705665
A51: Example 3
A52: # defects in road
A53: assume 1: prob of a defect is the same for any 2 highway intervals of equal length
A54: assume 2: occurrence or nonoccurrence of defects for any 1 interval is independent of the occurrence or nonoccurrence in any other interval
A55: Interval = Length = | B55: 1 | C55: mile
A56: Mean = | B56: 2 | C56: defects
A57: Random Variable = | B57: ="# defects in "&B55&" "&C55&" stretch" -> # defects in 1 mile stretch
A58: Interval = Length = | B58: 3 | C58: miles
A59: Mean = | B59: =B58/B55*B56 -> 6 | C59: defects | D59: New Mean = (New Length)/(Old Length)*Mean
A60: Random Variable = | B60: ="# defects in "&B58&" "&C58&" stretch"&CHAR(10)&"(Mean = "&B59&" "&C59&")" -> # defects in 3 miles stretch (Mean = 6 defects) | C60: .
A61: x | B61: 0 | F61: x | G61: 0 | H61: 1 | I61: 2 | J61: 3 | K61: 4 | L61: 5 | M61: 6 | N61: 7 | O61: 8 | P61: 9 | Q61: 10 | R61: 11 | S61: 12 | T61: 13 | U61: 14 | V61: 15 | W61: 16 | X61: 17 | Y61: 18 | Z61: 19 | AA61: 20 | AB61: 21 | AC61: 22 | AD61: 23 | AE61: 24 | AF61: 25 | AG61: 26 | AH61: 27 | AI61: 28 | AJ61: 29 | AK61: 30
A62: ="P(x="&$B$61&")" -> P(x=0) | B62: =B59^B61*EXP(1)^-B59 -> 0.002478752177 | C62: ="P(of "&B61&" defects in "&$B$58&" "&$C$58&")" -> P(of 0 defects in 3 miles) | F62: P(x) | G62: =_xlfn.POISSON.DIST(G61,$B$59,0) -> 0.002478752177 | H62: =_xlfn.POISSON.DIST(H61,$B$59,0) -> 0.01487251306 | I62: 0.04461753918 | J62: 0.08923507836 | K62: 0.1338526175 | L62: 0.160623141 | M62: 0.160623141 | N62: 0.137676978 | O62: 0.1032577335 | P62: 0.06883848902 | Q62: 0.04130309341 | R62: 0.02252896004 | S62: 0.01126448002 | T62: 0.005198990779 | U62: 0.002228138905 | V62: 0.0008912555621 | W62: 0.0003342208358 | X62: 0.000117960295 | Y62: 3.932009833e-05 | Z62: 1.241687316e-05 | AA62: 3.725061947e-06 | AB62: 1.064303413e-06 | AC62: 2.902645673e-07 | AD62: 7.572119147e-08 | AE62: 1.893029787e-08 | AF62: 4.543271488e-09 | AG62: 1.048447267e-09 | AH62: 2.329882814e-10 | AI62: 4.992606031e-11 | AJ62: 1.032952972e-11 | AK62: 2.065905944e-12
A63: ="P(x="&$B$61&")" -> P(x=0) | B63: =_xlfn.POISSON.DIST(B61,B59,0) -> 0.002478752177
A64: x | B64: 1
A65: ="P(at least "&$B$64&")" -> P(at least 1) | B65: =1-B62 -> 0.9975212478 | C65: ="P(of at least "&B64&" defects in "&$B$58&" "&$C$58&")" -> P(of at least 1 defects in 3 miles)
A66: ="P(at least "&$B$64&")" -> P(at least 1) | B66: =1-_xlfn.POISSON.DIST(B64-1,B59,1) -> 0.9975212478
A68: Problem 61 chapter 5
A69: Cars arrive randomly and independently
A70: Probability of an arrival is the same for any two time intervals of equal length
A71: Time Period = | B71: 1 | C71: hour | D71: in
A72: Mean | B72: 15 | C72: cars
A73: Thing counted | B73: arrivals | D73: x | E73: 0 | F73: 1 | G73: 2 | H73: 3 | I73: 4 | J73: 5 | K73: 6 | L73: 7 | M73: 8 | N73: 9 | O73: 10 | P73: 11 | Q73: 12 | R73: 13 | S73: 14 | T73: 15 | U73: 16 | V73: 17 | W73: 18 | X73: 19 | Y73: 20 | Z73: 21 | AA73: 22 | AB73: 23 | AC73: 24 | AD73: 25 | AE73: 26 | AF73: 27 | AG73: 28 | AH73: 29 | AI73: 30 | AJ73: 31 | AK73: 32 | AL73: 33 | AM73: 34 | AN73: 35 | AO73: 36 | AP73: 37 | AQ73: 38 | AR73: 39 | AS73: 40 | AT73: 41 | AU73: 42 | AV73: 43 | AW73: 44 | AX73: 45 | AY73: 46 | AZ73: 47 | BA73: 48 | BB73: 49 | BC73: 50 | BD73: 51 | BE73: 52 | BF73: 53 | BG73: 54
A74: Random Variable | B74: ="# of "&B73&" "&D71&" "&B71&" "&C71 -> # of arrivals in 1 hour | D74: P(x) | E74: =_xlfn.POISSON.DIST(E73,$B$72,0) -> 3.059023205e-07 | F74: =_xlfn.POISSON.DIST(F73,$B$72,0) -> 4.588534808e-06 | G74: 3.441401106e-05 | H74: 0.0001720700553 | I74: 0.0006452627073 | J74: 0.001935788122 | K74: 0.004839470305 | L74: 0.01037029351 | M74: 0.01944430033 | N74: 0.03240716722 | O74: 0.04861075083 | P74: 0.06628738749 | Q74: 0.08285923437 | R74: 0.09560680889 | S74: 0.1024358667 | T74: 0.1024358667 | U74: 0.096033625 | V74: 0.08473555147 | W74: 0.07061295956 | X74: 0.05574707333 | Y74: 0.041810305 | Z74: 0.02986450357 | AA74: 0.02036216153 | AB74: 0.01327967056 | AC74: 0.0082997941 | AD74: 0.00497987646 | AE74: 0.00287300565 | AF74: 0.00159611425 | AG74: 0.0008550612054 | AH74: 0.0004422730373 | AI74: 0.0002211365186 | AJ74: =_xlfn.POISSON.DIST(AJ73,$B$72,0) -> 0.0001070015413 | AK74: =_xlfn.POISSON.DIST(AK73,$B$72,0) -> 5.015697247e-05 | AL74: =_xlfn.POISSON.DIST(AL73,$B$72,0) -> 2.279862385e-05 | AM74: =_xlfn.POISSON.DIST(AM73,$B$72,0) -> 1.005821641e-05 | AN74: =_xlfn.POISSON.DIST(AN73,$B$72,0) -> 4.310664174e-06 | AO74: =_xlfn.POISSON.DIST(AO73,$B$72,0) -> 1.796110072e-06 | AP74: =_xlfn.POISSON.DIST(AP73,$B$72,0) -> 7.28152732e-07 | AQ74: =_xlfn.POISSON.DIST(AQ73,$B$72,0) -> 2.8742871e-07 | AR74: =_xlfn.POISSON.DIST(AR73,$B$72,0) -> 1.105495039e-07 | AS74: =_xlfn.POISSON.DIST(AS73,$B$72,0) -> 4.145606394e-08 | AT74: =_xlfn.POISSON.DIST(AT73,$B$72,0) -> 1.516685266e-08 | AU74: =_xlfn.POISSON.DIST(AU73,$B$72,0) -> 5.416733094e-09 | AV74: =_xlfn.POISSON.DIST(AV73,$B$72,0) -> 1.889558056e-09 | AW74: =_xlfn.POISSON.DIST(AW73,$B$72,0) -> 6.441675191e-10 | AX74: =_xlfn.POISSON.DIST(AX73,$B$72,0) -> 2.147225064e-10 | AY74: =_xlfn.POISSON.DIST(AY73,$B$72,0) -> 7.00182086e-11 | AZ74: =_xlfn.POISSON.DIST(AZ73,$B$72,0) -> 2.234623679e-11 | BA74: =_xlfn.POISSON.DIST(BA73,$B$72,0) -> 6.983198996e-12 | BB74: =_xlfn.POISSON.DIST(BB73,$B$72,0) -> 2.137713978e-12 | BC74: =_xlfn.POISSON.DIST(BC73,$B$72,0) -> 6.413141935e-13 | BD74: =_xlfn.POISSON.DIST(BD73,$B$72,0) -> 1.886218216e-13 | BE74: =_xlfn.POISSON.DIST(BE73,$B$72,0) -> 5.441014085e-14 | BF74: =_xlfn.POISSON.DIST(BF73,$B$72,0) -> 1.539909647e-14 | BG74: =_xlfn.POISSON.DIST(BG73,$B$72,0) -> 4.277526796e-15
A75: x | B75: 20
A76: Operator | B76: >= | D76: check
A77: ="P(x"&B76&B75&") =" -> P(x>=20) = | B77: =1-_xlfn.POISSON.DIST(B75-1,B72,1) -> 0.124781215 | D77: =SUM(Y74:BG74) -> 0.124781215
A78: ="P(x"&B76&B75&") =" -> P(x>=20) =
A80: Problem 62 chapter 5
A81: # break downs per day are random and independent
A82: Probability of a break down is the same for any two time intervals of equal length
A83: Time Period = | B83: 1 | C83: day | D83: in
A84: Mean | B84: 1.5 | C84: break downs
A85: Thing counted | B85: =C84 -> break downs
A86: Random Variable | B86: ="# of "&B85&" "&D83&" "&B83&" "&C83 -> # of break downs in 1 day | D86: x | E86: 0 | F86: 1 | G86: 2 | H86: 3 | I86: 4 | J86: 5 | K86: 6 | L86: 7 | M86: 8 | N86: 9 | O86: 10 | P86: 11 | Q86: 12 | R86: 13 | S86: 14 | T86: 15 | U86: 16 | V86: 17 | W86: 18 | X86: 19 | Y86: 20 | Z86: 21 | AA86: 22 | AB86: 23
A87: x | B87: 3 | D87: P(x) | E87: =_xlfn.POISSON.DIST(E86,$B$84,0) -> 0.2231301601 | F87: =_xlfn.POISSON.DIST(F86,$B$84,0) -> 0.3346952402 | G87: 0.2510214302 | H87: 0.1255107151 | I87: 0.04706651816 | J87: 0.01411995545 | K87: 0.003529988862 | L87: 0.0007564261847 | M87: 0.0001418299096 | N87: 2.363831827e-05 | O87: 3.545747741e-06 | P87: 4.835110555e-07 | Q87: 6.043888194e-08 | R87: 6.973717147e-09 | S87: 7.4718398e-10 | T87: 7.4718398e-11 | U87: 7.004849813e-12 | V87: 6.180749835e-13 | W87: 5.150624862e-14 | X87: 4.066282786e-15 | Y87: 3.04971209e-16 | Z87: 2.178365778e-17 | AA87: 1.485249394e-18 | AB87: 9.686409093e-20
A88: Operator | B88: >=
A89: ="P(x"&B88&B87&") =" -> P(x>=3) = | B89: =1-_xlfn.POISSON.DIST(B87-1,B84,1) -> 0.1911531695
A90: ="P(x"&B88&B87&") =" -> P(x>=3) =
A92: Problem 40 chapter 5
A93: Time Interval | B93: 1 | C93: hour
A94: mean | B94: 48 | C94: calls
A95: New Time | B95: 5 | C95: minutes | G95: x | H95: 0 | I95: 1 | J95: 2 | K95: 3 | L95: 4 | M95: 5 | N95: 6 | O95: 7 | P95: 8 | Q95: 9 | R95: 10 | S95: 11 | T95: 12 | U95: 13 | V95: 14 | W95: 15 | X95: 16 | Y95: 17 | Z95: 18 | AA95: 19 | AB95: 20 | AC95: 21 | AD95: 22 | AE95: 23
A96: New Time | B96: =B95/60 -> 0.08333333333 | C96: hour | G96: P(x) | H96: =_xlfn.POISSON.DIST(H95,$B$97,0) -> 0.01831563889 | I96: =_xlfn.POISSON.DIST(I95,$B$97,0) -> 0.07326255555 | J96: 0.1465251111 | K96: 0.1953668148 | L96: 0.1953668148 | M96: 0.1562934519 | N96: 0.1041956346 | O96: 0.05954036261 | P96: 0.0297701813 | Q96: 0.01323119169 | R96: 0.005292476676 | S96: 0.001924536973 | T96: 0.0006415123244 | U96: 0.0001973884075 | V96: 5.639668786e-05 | W96: 1.503911676e-05 | X96: 3.759779191e-06 | Y96: 8.846539272e-07 | Z96: 1.965897616e-07 | AA96: 4.138731823e-08 | AB96: 8.277463647e-09 | AC96: 1.576659742e-09 | AD96: 2.866654077e-10 | AE96: 4.985485351e-11
A97: New Mean | B97: =B96/B93*B94 -> 4 | C97: New Mean = (New Time)/(Old Time)*Mean
A98: x | B98: 3 | D98: check
A99: ="P(x="&B98&" "&C94&" in "&B95&" "&C95&")" -> P(x=3 calls in 5 minutes) | B99: =_xlfn.POISSON.DIST(B98,B97,0) -> 0.1953668148 | D99: =K96 -> 0.1953668148
A101: New Time | B101: 15 | C101: minutes | G101: x | H101: 0 | I101: 1 | J101: 2 | K101: 3 | L101: 4 | M101: 5 | N101: 6 | O101: 7 | P101: 8 | Q101: 9 | R101: 10 | S101: 11 | T101: 12 | U101: 13 | V101: 14 | W101: 15 | X101: 16 | Y101: 17 | Z101: 18 | AA101: 19 | AB101: 20 | AC101: 21 | AD101: 22 | AE101: 23
A102: New Time | B102: =B101/60 -> 0.25 | C102: hour | G102: P(x) | H102: =_xlfn.POISSON.DIST(H101,$B$103,0) -> 6.144212353e-06 | I102: =_xlfn.POISSON.DIST(I101,$B$103,0) -> 7.373054824e-05 | J102: 0.0004423832894 | K102: 0.001769533158 | L102: 0.005308599473 | M102: 0.01274063874 | N102: 0.02548127747 | O102: 0.04368218995 | P102: 0.06552328493 | Q102: 0.0873643799 | R102: 0.1048372559 | S102: 0.1143679155 | T102: 0.1143679155 | U102: 0.1055703835 | V102: 0.09048890018 | W102: 0.07239112015 | X102: 0.05429334011 | Y102: 0.03832471067 | Z102: 0.02554980711 | AA102: 0.01613672028 | AB102: 0.009682032168 | AC102: 0.00553258981 | AD102: 0.00301777626 | AE102: 0.001574491962
A103: New Mean | B103: =B102/B93*B94 -> 12 | C103: New Mean = (New Time)/(Old Time)*Mean
A104: x | B104: 10 | D104: check
A105: ="P(x="&B104&" "&C100&" in "&B101&" "&C101&")" -> P(x=10 in 15 minutes) | B105: =_xlfn.POISSON.DIST(B104,B103,0) -> 0.1048372559 | D105: =R102 -> 0.1048372559
A108: New Time | B108: 5 | C108: minutes | G108: x | H108: 0 | I108: 1 | J108: 2 | K108: 3 | L108: 4 | M108: 5 | N108: 6 | O108: 7 | P108: 8 | Q108: 9 | R108: 10 | S108: 11 | T108: 12 | U108: 13 | V108: 14 | W108: 15 | X108: 16 | Y108: 17 | Z108: 18 | AA108: 19 | AB108: 20 | AC108: 21 | AD108: 22 | AE108: 23
A109: New Time | B109: =B108/60 -> 0.08333333333 | C109: hour | G109: P(x) | H109: =_xlfn.POISSON.DIST(H108,$B$110,0) -> 0.01831563889 | I109: =_xlfn.POISSON.DIST(I108,$B$110,0) -> 0.07326255555 | J109: 0.1465251111 | K109: 0.1953668148 | L109: 0.1953668148 | M109: 0.1562934519 | N109: 0.1041956346 | O109: 0.05954036261 | P109: 0.0297701813 | Q109: 0.01323119169 | R109: 0.005292476676 | S109: 0.001924536973 | T109: 0.0006415123244 | U109: 0.0001973884075 | V109: 5.639668786e-05 | W109: 1.503911676e-05 | X109: 3.759779191e-06 | Y109: 8.846539272e-07 | Z109: 1.965897616e-07 | AA109: 4.138731823e-08 | AB109: 8.277463647e-09 | AC109: 1.576659742e-09 | AD109: 2.866654077e-10 | AE109: 4.985485351e-11
A110: New Mean | B110: =B109/B93*B94 -> 4 | C110: New Mean = (New Time)/(Old Time)*Mean
A111: Expected Mean = | B111: =B110 -> 4
A113: New Time | B113: 3 | C113: minutes
A114: New Time Hours | B114: =B113/60 -> 0.05 | C114: hours | E114: x | F114: 0 | G114: 1 | H114: 2 | I114: 3 | J114: 4 | K114: 5 | L114: 6 | M114: 7 | N114: 8 | O114: 9 | P114: 10 | Q114: 11 | R114: 12 | S114: 13 | T114: 14 | U114: 15 | V114: 16 | W114: 17 | X114: 18 | Y114: 19 | Z114: 20 | AA114: 21 | AB114: 22 | AC114: 23
A115: New Mean | B115: =B114/B93*B94 -> 2.4 | E115: P(x) | F115: =_xlfn.POISSON.DIST(F114,$B$115,0) -> 0.09071795329 | G115: =_xlfn.POISSON.DIST(G114,$B$115,0) -> 0.2177230879 | H115: 0.2612677055 | I115: 0.2090141644 | J115: 0.1254084986 | K115: 0.06019607934 | L115: 0.02407843174 | M115: 0.00825546231 | N115: 0.002476638693 | O115: 0.0006604369848 | P115: 0.0001585048763 | Q115: 3.458288211e-05 | R115: 6.916576422e-06 | S115: 1.276906416e-06 | T115: 2.188982428e-07 | U115: 3.502371885e-08 | V115: 5.253557828e-09 | W115: 7.416787521e-10 | X115: 9.889050028e-11 | Y115: 1.249143161e-11 | Z115: 1.498971794e-12 | AA115: 1.713110621e-13 | AB115: 1.868847951e-14 | AC115: 1.950102209e-15
A116: x | B116: 0
A117: ="P(x="&B116&" "&$C$94&" in "&B113&" "&C113&")" -> P(x=0 calls in 3 minutes) | B117: =_xlfn.POISSON.DIST(B116,B115,0) -> 0.09071795329

Sheet EX
B1: Exponential
B2: Exponential Probability Distribution
B3: Continuous Random Variable
B4: Useful in computing probabilities for the time it takes to complete a task
B5: Useful in computing probability for the length (time or space - (minutes or feet/miles)) between occurrences (1 car arrival & next car arrival, start loading truck & end loading truck, defect 1 in highway & next defect)
B6: Examples Random Variable:
B7: Time between arrivals at car wash
B8: Time required to load truck
B9: Distance between major defects in a highway
B11: Exponential Probability Functions (2 one density (height) and one cumulative probabilities)
A12: 1 | B12: f(x) = (1/μ)*e-x/μ | C12: For x >=0 | D12: Density Function to determine Height or curve, not probability
A13: 2 | B13: P(x<=x0) = 1- e-x0/μ | C13: Used to calculate Cumulative
B14: F(x) | C14: Probability of length of interval (time or space)
B15: Continuous Random Variable = x = | C15: Length of interval (time or space - minutes/hours or feet/miles)
B16: Mean = Expected Value = μ
B17: e = =EXP(1) | C17: =EXP(1) -> 2.718281828
B18: without upper limit (but the probability is nil in the upper numbers)
B19: Mean = Standard Deviation
B21: Example 1
B22: ="Time To Load Truck, mew = "&C23&" "&D23 -> Time To Load Truck, mew = 15 Minutes | F22: =B30&" = "&ROUND(C30,4) -> P(0 <= Minutes To Load Truck <= 6) = 0.3297 | G22: =_xlfn.EXPON.DIST(G23,1/$C$23,0) -> 0.06666666667 | H22: =_xlfn.EXPON.DIST(H23,1/$C$23,0) -> 0.06448107337 | I22: =_xlfn.EXPON.DIST(I23,1/$C$23,0) -> 0.06236713234 | J22: =_xlfn.EXPON.DIST(J23,1/$C$23,0) -> 0.06032249454 | K22: =_xlfn.EXPON.DIST(K23,1/$C$23,0) -> 0.05834488794 | L22: =_xlfn.EXPON.DIST(L23,1/$C$23,0) -> 0.05643211499 | M22: =_xlfn.EXPON.DIST(M23,1/$C$23,0) -> 0.05458205021 | N22: =_xlfn.EXPON.DIST(N23,1/$C$23,0) -> 0.05279263776 | O22: =_xlfn.EXPON.DIST(O23,1/$C$23,0) -> 0.05106188922 | P22: =_xlfn.EXPON.DIST(P23,1/$C$23,0) -> 0.04938788138 | Q22: =_xlfn.EXPON.DIST(Q23,1/$C$23,0) -> 0.04776875404 | R22: =_xlfn.EXPON.DIST(R23,1/$C$23,0) -> 0.04620270801 | S22: =_xlfn.EXPON.DIST(S23,1/$C$23,0) -> 0.04468800307 | T22: =_xlfn.EXPON.DIST(T23,1/$C$23,0) -> 0.04322295607 | U22: =_xlfn.EXPON.DIST(U23,1/$C$23,0) -> 0.04180593902 | V22: =_xlfn.EXPON.DIST(V23,1/$C$23,0) -> 0.04043537731 | W22: =_xlfn.EXPON.DIST(W23,1/$C$23,0) -> 0.03910974797 | X22: =_xlfn.EXPON.DIST(X23,1/$C$23,0) -> 0.03782757792 | Y22: =_xlfn.EXPON.DIST(Y23,1/$C$23,0) -> 0.03658744241 | Z22: =_xlfn.EXPON.DIST(Z23,1/$C$23,0) -> 0.03538796337 | AA22: =_xlfn.EXPON.DIST(AA23,1/$C$23,0) -> 0.03422780794 | AB22: =_xlfn.EXPON.DIST(AB23,1/$C$23,0) -> 0.03310568692 | AC22: =_xlfn.EXPON.DIST(AC23,1/$C$23,0) -> 0.03202035341 | AD22: =_xlfn.EXPON.DIST(AD23,1/$C$23,0) -> 0.03097060136 | AE22: =_xlfn.EXPON.DIST(AE23,1/$C$23,0) -> 0.02995526427 | AF22: =_xlfn.EXPON.DIST(AF23,1/$C$23,0) -> 0.0289732139 | AG22: =_xlfn.EXPON.DIST(AG23,1/$C$23,0) -> 0.02802335897 | AH22: =_xlfn.EXPON.DIST(AH23,1/$C$23,0) -> 0.02710464398 | AI22: =_xlfn.EXPON.DIST(AI23,1/$C$23,0) -> 0.02621604806 | AJ22: =_xlfn.EXPON.DIST(AJ23,1/$C$23,0) -> 0.02535658377 | AK22: =_xlfn.EXPON.DIST(AK23,1/$C$23,0) -> 0.02452529608 | AL22: =_xlfn.EXPON.DIST(AL23,1/$C$23,0) -> 0.02372126124 | AM22: =_xlfn.EXPON.DIST(AM23,1/$C$23,0) -> 0.02294358579 | AN22: =_xlfn.EXPON.DIST(AN23,1/$C$23,0) -> 0.02219140558 | AO22: =_xlfn.EXPON.DIST(AO23,1/$C$23,0) -> 0.02146388477 | AP22: =_xlfn.EXPON.DIST(AP23,1/$C$23,0) -> 0.02076021493 | AQ22: =_xlfn.EXPON.DIST(AQ23,1/$C$23,0) -> 0.02007961413 | AR22: =_xlfn.EXPON.DIST(AR23,1/$C$23,0) -> 0.01942132608 | AS22: =_xlfn.EXPON.DIST(AS23,1/$C$23,0) -> 0.01878461927 | AT22: =_xlfn.EXPON.DIST(AT23,1/$C$23,0) -> 0.0181687862 | AU22: =_xlfn.EXPON.DIST(AU23,1/$C$23,0) -> 0.01757314254 | AV22: =_xlfn.EXPON.DIST(AV23,1/$C$23,0) -> 0.0169970264 | AW22: =_xlfn.EXPON.DIST(AW23,1/$C$23,0) -> 0.0164397976 | AX22: =_xlfn.EXPON.DIST(AX23,1/$C$23,0) -> 0.01590083692 | AY22: =_xlfn.EXPON.DIST(AY23,1/$C$23,0) -> 0.01537954548 | AZ22: =_xlfn.EXPON.DIST(AZ23,1/$C$23,0) -> 0.01487534401 | BA22: =_xlfn.EXPON.DIST(BA23,1/$C$23,0) -> 0.01438767223 | BB22: =_xlfn.EXPON.DIST(BB23,1/$C$23,0) -> 0.01391598823 | BC22: =_xlfn.EXPON.DIST(BC23,1/$C$23,0) -> 0.01345976787 | BD22: =_xlfn.EXPON.DIST(BD23,1/$C$23,0) -> 0.01301850419 | BE22: =_xlfn.EXPON.DIST(BE23,1/$C$23,0) -> 0.01259170686 | BF22: =_xlfn.EXPON.DIST(BF23,1/$C$23,0) -> 0.0121789016 | BG22: =_xlfn.EXPON.DIST(BG23,1/$C$23,0) -> 0.01177962972 | BH22: =_xlfn.EXPON.DIST(BH23,1/$C$23,0) -> 0.01139344752 | BI22: =_xlfn.EXPON.DIST(BI23,1/$C$23,0) -> 0.01101992588 | BJ22: =_xlfn.EXPON.DIST(BJ23,1/$C$23,0) -> 0.01065864974 | BK22: =_xlfn.EXPON.DIST(BK23,1/$C$23,0) -> 0.01030921764 | BL22: =_xlfn.EXPON.DIST(BL23,1/$C$23,0) -> 0.009971241282 | BM22: =_xlfn.EXPON.DIST(BM23,1/$C$23,0) -> 0.009644345109 | BN22: =_xlfn.EXPON.DIST(BN23,1/$C$23,0) -> 0.009328165868 | BO22: =_xlfn.EXPON.DIST(BO23,1/$C$23,0) -> 0.009022352216 | BP22: =_xlfn.EXPON.DIST(BP23,1/$C$23,0) -> 0.008726564327 | BQ22: =_xlfn.EXPON.DIST(BQ23,1/$C$23,0) -> 0.008440473519 | BR22: =_xlfn.EXPON.DIST(BR23,1/$C$23,0) -> 0.008163761884 | BS22: =_xlfn.EXPON.DIST(BS23,1/$C$23,0) -> 0.007896121934 | BT22: =_xlfn.EXPON.DIST(BT23,1/$C$23,0) -> 0.007637256266 | BU22: =_xlfn.EXPON.DIST(BU23,1/$C$23,0) -> 0.007386877224 | BV22: =_xlfn.EXPON.DIST(BV23,1/$C$23,0) -> 0.007144706583 | BW22: =_xlfn.EXPON.DIST(BW23,1/$C$23,0) -> 0.006910475241 | BX22: =_xlfn.EXPON.DIST(BX23,1/$C$23,0) -> 0.006683922915 | BY22: =_xlfn.EXPON.DIST(BY23,1/$C$23,0) -> 0.006464797858 | BZ22: =_xlfn.EXPON.DIST(BZ23,1/$C$23,0) -> 0.006252856574 | CA22: =_xlfn.EXPON.DIST(CA23,1/$C$23,0) -> 0.006047863553 | CB22: =_xlfn.EXPON.DIST(CB23,1/$C$23,0) -> 0.005849591002 | CC22: =_xlfn.EXPON.DIST(CC23,1/$C$23,0) -> 0.005657818598 | CD22: =_xlfn.EXPON.DIST(CD23,1/$C$23,0) -> 0.005472333242 | CE22: =_xlfn.EXPON.DIST(CE23,1/$C$23,0) -> 0.005292928818 | CF22: =_xlfn.EXPON.DIST(CF23,1/$C$23,0) -> 0.005119405972 | CG22: =_xlfn.EXPON.DIST(CG23,1/$C$23,0) -> 0.004951571881 | CH22: =_xlfn.EXPON.DIST(CH23,1/$C$23,0) -> 0.004789240046 | CI22: =_xlfn.EXPON.DIST(CI23,1/$C$23,0) -> 0.004632230082 | CJ22: =_xlfn.EXPON.DIST(CJ23,1/$C$23,0) -> 0.004480367516 | CK22: =_xlfn.EXPON.DIST(CK23,1/$C$23,0) -> 0.004333483598 | CL22: =_xlfn.EXPON.DIST(CL23,1/$C$23,0) -> 0.004191415107 | CM22: =_xlfn.EXPON.DIST(CM23,1/$C$23,0) -> 0.004054004175 | CN22: =_xlfn.EXPON.DIST(CN23,1/$C$23,0) -> 0.003921098109 | CO22: =_xlfn.EXPON.DIST(CO23,1/$C$23,0) -> 0.003792549223 | CP22: =_xlfn.EXPON.DIST(CP23,1/$C$23,0) -> 0.00366821467 | CQ22: =_xlfn.EXPON.DIST(CQ23,1/$C$23,0) -> 0.003547956289 | CR22: =_xlfn.EXPON.DIST(CR23,1/$C$23,0) -> 0.003431640447 | CS22: =_xlfn.EXPON.DIST(CS23,1/$C$23,0) -> 0.003319137891 | CT22: =_xlfn.EXPON.DIST(CT23,1/$C$23,0) -> 0.003210323608 | CU22: =_xlfn.EXPON.DIST(CU23,1/$C$23,0) -> 0.003105076681 | CV22: =_xlfn.EXPON.DIST(CV23,1/$C$23,0) -> 0.00300328016 | CW22: =_xlfn.EXPON.DIST(CW23,1/$C$23,0) -> 0.002904820925 | CX22: =_xlfn.EXPON.DIST(CX23,1/$C$23,0) -> 0.002809589567 | CY22: =_xlfn.EXPON.DIST(CY23,1/$C$23,0) -> 0.002717480265 | CZ22: =_xlfn.EXPON.DIST(CZ23,1/$C$23,0) -> 0.002628390665 | DA22: =_xlfn.EXPON.DIST(DA23,1/$C$23,0) -> 0.00254222177 | DB22: =_xlfn.EXPON.DIST(DB23,1/$C$23,0) -> 0.002458877827 | DC22: =_xlfn.EXPON.DIST(DC23,1/$C$23,0) -> 0.002378266223 | DD22: =_xlfn.EXPON.DIST(DD23,1/$C$23,0) -> 0.002300297382 | DE22: =_xlfn.EXPON.DIST(DE23,1/$C$23,0) -> 0.002224884664 | DF22: =_xlfn.EXPON.DIST(DF23,1/$C$23,0) -> 0.002151944269 | DG22: =_xlfn.EXPON.DIST(DG23,1/$C$23,0) -> 0.002081395144 | DH22: =_xlfn.EXPON.DIST(DH23,1/$C$23,0) -> 0.002013158895 | DI22: =_xlfn.EXPON.DIST(DI23,1/$C$23,0) -> 0.001947159696 | DJ22: =_xlfn.EXPON.DIST(DJ23,1/$C$23,0) -> 0.001883324208 | DK22: =_xlfn.EXPON.DIST(DK23,1/$C$23,0) -> 0.001821581496 | DL22: =_xlfn.EXPON.DIST(DL23,1/$C$23,0) -> 0.001761862952 | DM22: =_xlfn.EXPON.DIST(DM23,1/$C$23,0) -> 0.001704102214 | DN22: =_xlfn.EXPON.DIST(DN23,1/$C$23,0) -> 0.001648235098 | DO22: =_xlfn.EXPON.DIST(DO23,1/$C$23,0) -> 0.001594199524 | DP22: =_xlfn.EXPON.DIST(DP23,1/$C$23,0) -> 0.001541935447 | DQ22: =_xlfn.EXPON.DIST(DQ23,1/$C$23,0) -> 0.00149138479 | DR22: =_xlfn.EXPON.DIST(DR23,1/$C$23,0) -> 0.001442491381 | DS22: =_xlfn.EXPON.DIST(DS23,1/$C$23,0) -> 0.001395200889 | DT22: =_xlfn.EXPON.DIST(DT23,1/$C$23,0) -> 0.001349460763 | DU22: =_xlfn.EXPON.DIST(DU23,1/$C$23,0) -> 0.001305220177 | DV22: =_xlfn.EXPON.DIST(DV23,1/$C$23,0) -> 0.00126242997 | DW22: =_xlfn.EXPON.DIST(DW23,1/$C$23,0) -> 0.001221042593 | DX22: =_xlfn.EXPON.DIST(DX23,1/$C$23,0) -> 0.001181012055 | DY22: =_xlfn.EXPON.DIST(DY23,1/$C$23,0) -> 0.001142293874 | DZ22: =_xlfn.EXPON.DIST(DZ23,1/$C$23,0) -> 0.001104845027 | EA22: =_xlfn.EXPON.DIST(EA23,1/$C$23,0) -> 0.001068623898 | EB22: =_xlfn.EXPON.DIST(EB23,1/$C$23,0) -> 0.00103359024 | EC22: =_xlfn.EXPON.DIST(EC23,1/$C$23,0) -> 0.0009997051214 | ED22: =_xlfn.EXPON.DIST(ED23,1/$C$23,0) -> 0.0009669308891 | EE22: =_xlfn.EXPON.DIST(EE23,1/$C$23,0) -> 0.000935231124 | EF22: =_xlfn.EXPON.DIST(EF23,1/$C$23,0) -> 0.0009045706008 | EG22: =_xlfn.EXPON.DIST(EG23,1/$C$23,0) -> 0.0008749152491 | EH22: =_xlfn.EXPON.DIST(EH23,1/$C$23,0) -> 0.0008462321155 | EI22: =_xlfn.EXPON.DIST(EI23,1/$C$23,0) -> 0.0008184893269 | EJ22: =_xlfn.EXPON.DIST(EJ23,1/$C$23,0) -> 0.000791656055 | EK22: =_xlfn.EXPON.DIST(EK23,1/$C$23,0) -> 0.0007657024825 | EL22: =_xlfn.EXPON.DIST(EL23,1/$C$23,0) -> 0.0007405997692 | EM22: =_xlfn.EXPON.DIST(EM23,1/$C$23,0) -> 0.0007163200208 | EN22: =_xlfn.EXPON.DIST(EN23,1/$C$23,0) -> 0.0006928362572 | EO22: =_xlfn.EXPON.DIST(EO23,1/$C$23,0) -> 0.000670122383 | EP22: =_xlfn.EXPON.DIST(EP23,1/$C$23,0) -> 0.0006481531581 | EQ22: =_xlfn.EXPON.DIST(EQ23,1/$C$23,0) -> 0.0006269041701 | ER22: =_xlfn.EXPON.DIST(ER23,1/$C$23,0) -> 0.0006063518068 | ES22: =_xlfn.EXPON.DIST(ES23,1/$C$23,0) -> 0.0005864732301 | ET22: =_xlfn.EXPON.DIST(ET23,1/$C$23,0) -> 0.0005672463506 | EU22: =_xlfn.EXPON.DIST(EU23,1/$C$23,0) -> 0.0005486498033 | EV22: =_xlfn.EXPON.DIST(EV23,1/$C$23,0) -> 0.0005306629232 | EW22: =_xlfn.EXPON.DIST(EW23,1/$C$23,0) -> 0.0005132657233 | EX22: =_xlfn.EXPON.DIST(EX23,1/$C$23,0) -> 0.0004964388714 | EY22: =_xlfn.EXPON.DIST(EY23,1/$C$23,0) -> 0.0004801636693 | EZ22: =_xlfn.EXPON.DIST(EZ23,1/$C$23,0) -> 0.0004644220318 | FA22: =_xlfn.EXPON.DIST(FA23,1/$C$23,0) -> 0.0004491964666 | FB22: =_xlfn.EXPON.DIST(FB23,1/$C$23,0) -> 0.0004344700548 | FC22: =_xlfn.EXPON.DIST(FC23,1/$C$23,0) -> 0.0004202264322 | FD22: =_xlfn.EXPON.DIST(FD23,1/$C$23,0) -> 0.000406449771 | FE22: =_xlfn.EXPON.DIST(FE23,1/$C$23,0) -> 0.0003931247626 | FF22: =_xlfn.EXPON.DIST(FF23,1/$C$23,0) -> 0.0003802365999 | FG22: =_xlfn.EXPON.DIST(FG23,1/$C$23,0) -> 0.0003677709614 | FH22: =_xlfn.EXPON.DIST(FH23,1/$C$23,0) -> 0.0003557139951 | FI22: =_xlfn.EXPON.DIST(FI23,1/$C$23,0) -> 0.0003440523033 | FJ22: =_xlfn.EXPON.DIST(FJ23,1/$C$23,0) -> 0.0003327729271 | FK22: =_xlfn.EXPON.DIST(FK23,1/$C$23,0) -> 0.0003218633329 | FL22: =_xlfn.EXPON.DIST(FL23,1/$C$23,0) -> 0.0003113113978 | FM22: =_xlfn.EXPON.DIST(FM23,1/$C$23,0) -> 0.0003011053962 | FN22: =_xlfn.EXPON.DIST(FN23,1/$C$23,0) -> 0.0002912339871 | FO22: =_xlfn.EXPON.DIST(FO23,1/$C$23,0) -> 0.0002816862014 | FP22: =_xlfn.EXPON.DIST(FP23,1/$C$23,0) -> 0.0002724514292 | FQ22: =_xlfn.EXPON.DIST(FQ23,1/$C$23,0) -> 0.000263519409 | FR22: =_xlfn.EXPON.DIST(FR23,1/$C$23,0) -> 0.0002548802151 | FS22: =_xlfn.EXPON.DIST(FS23,1/$C$23,0) -> 0.0002465242478 | FT22: =_xlfn.EXPON.DIST(FT23,1/$C$23,0) -> 0.0002384422216 | FU22: =_xlfn.EXPON.DIST(FU23,1/$C$23,0) -> 0.0002306251558 | FV22: =_xlfn.EXPON.DIST(FV23,1/$C$23,0) -> 0.0002230643638 | FW22: =_xlfn.EXPON.DIST(FW23,1/$C$23,0) -> 0.0002157514441 | FX22: =_xlfn.EXPON.DIST(FX23,1/$C$23,0) -> 0.0002086782705 | FY22: =_xlfn.EXPON.DIST(FY23,1/$C$23,0) -> 0.000201836983 | FZ22: =_xlfn.EXPON.DIST(FZ23,1/$C$23,0) -> 0.0001952199797 | GA22: =_xlfn.EXPON.DIST(GA23,1/$C$23,0) -> 0.0001888199075 | GB22: =_xlfn.EXPON.DIST(GB23,1/$C$23,0) -> 0.0001826296546 | GC22: =_xlfn.EXPON.DIST(GC23,1/$C$23,0) -> 0.0001766423423 | GD22: =_xlfn.EXPON.DIST(GD23,1/$C$23,0) -> 0.0001708513175 | GE22: =_xlfn.EXPON.DIST(GE23,1/$C$23,0) -> 0.0001652501451 | GF22: =_xlfn.EXPON.DIST(GF23,1/$C$23,0) -> 0.000159832601 | GG22: =_xlfn.EXPON.DIST(GG23,1/$C$23,0) -> 0.000154592665 | GH22: =_xlfn.EXPON.DIST(GH23,1/$C$23,0) -> 0.0001495245146 | GI22: =_xlfn.EXPON.DIST(GI23,1/$C$23,0) -> 0.000144622518 | GJ22: =_xlfn.EXPON.DIST(GJ23,1/$C$23,0) -> 0.0001398812279 | GK22: =_xlfn.EXPON.DIST(GK23,1/$C$23,0) -> 0.0001352953758 | GL22: =_xlfn.EXPON.DIST(GL23,1/$C$23,0) -> 0.0001308598657 | GM22: =_xlfn.EXPON.DIST(GM23,1/$C$23,0) -> 0.0001265697691 | GN22: =_xlfn.EXPON.DIST(GN23,1/$C$23,0) -> 0.0001224203185 | GO22: =_xlfn.EXPON.DIST(GO23,1/$C$23,0) -> 0.000118406903 | GP22: =_xlfn.EXPON.DIST(GP23,1/$C$23,0) -> 0.000114525063 | GQ22: =_xlfn.EXPON.DIST(GQ23,1/$C$23,0) -> 0.0001107704849 | GR22: =_xlfn.EXPON.DIST(GR23,1/$C$23,0) -> 0.0001071389964 | GS22: =_xlfn.EXPON.DIST(GS23,1/$C$23,0) -> 0.0001036265623 | GT22: =_xlfn.EXPON.DIST(GT23,1/$C$23,0) -> 0.0001002292795 | GU22: =_xlfn.EXPON.DIST(GU23,1/$C$23,0) -> 9.69433729e-05 | GV22: =_xlfn.EXPON.DIST(GV23,1/$C$23,0) -> 9.376519111e-05 | GW22: =_xlfn.EXPON.DIST(GW23,1/$C$23,0) -> 9.06912025e-05 | GX22: =_xlfn.EXPON.DIST(GX23,1/$C$23,0) -> 8.771799123e-05 | GY22: =_xlfn.EXPON.DIST(GY23,1/$C$23,0) -> 8.484225342e-05 | GZ22: =_xlfn.EXPON.DIST(GZ23,1/$C$23,0) -> 8.206079351e-05 | HA22: =_xlfn.EXPON.DIST(HA23,1/$C$23,0) -> 7.93705207e-05 | HB22: =_xlfn.EXPON.DIST(HB23,1/$C$23,0) -> 7.676844553e-05 | HC22: =_xlfn.EXPON.DIST(HC23,1/$C$23,0) -> 7.425167652e-05 | HD22: =_xlfn.EXPON.DIST(HD23,1/$C$23,0) -> 7.181741702e-05 | HE22: =_xlfn.EXPON.DIST(HE23,1/$C$23,0) -> 6.946296204e-05 | HF22: =_xlfn.EXPON.DIST(HF23,1/$C$23,0) -> 6.718569527e-05 | HG22: =_xlfn.EXPON.DIST(HG23,1/$C$23,0) -> 6.498308619e-05 | HH22: =_xlfn.EXPON.DIST(HH23,1/$C$23,0) -> 6.285268722e-05 | HI22: =_xlfn.EXPON.DIST(HI23,1/$C$23,0) -> 6.079213104e-05 | HJ22: =_xlfn.EXPON.DIST(HJ23,1/$C$23,0) -> 5.879912792e-05 | HK22: =_xlfn.EXPON.DIST(HK23,1/$C$23,0) -> 5.687146322e-05 | HL22: =_xlfn.EXPON.DIST(HL23,1/$C$23,0) -> 5.500699488e-05 | HM22: =_xlfn.EXPON.DIST(HM23,1/$C$23,0) -> 5.320365109e-05 | HN22: =_xlfn.EXPON.DIST(HN23,1/$C$23,0) -> 5.145942794e-05 | HO22: =_xlfn.EXPON.DIST(HO23,1/$C$23,0) -> 4.977238723e-05 | HP22: =_xlfn.EXPON.DIST(HP23,1/$C$23,0) -> 4.814065428e-05 | HQ22: =_xlfn.EXPON.DIST(HQ23,1/$C$23,0) -> 4.656241591e-05 | HR22: =_xlfn.EXPON.DIST(HR23,1/$C$23,0) -> 4.503591835e-05 | HS22: =_xlfn.EXPON.DIST(HS23,1/$C$23,0) -> 4.355946532e-05 | HT22: =_xlfn.EXPON.DIST(HT23,1/$C$23,0) -> 4.213141619e-05 | HU22: =_xlfn.EXPON.DIST(HU23,1/$C$23,0) -> 4.075018408e-05 | HV22: =_xlfn.EXPON.DIST(HV23,1/$C$23,0) -> 3.941423414e-05 | HW22: =_xlfn.EXPON.DIST(HW23,1/$C$23,0) -> 3.812208184e-05 | HX22: =_xlfn.EXPON.DIST(HX23,1/$C$23,0) -> 3.687229134e-05 | HY22: =_xlfn.EXPON.DIST(HY23,1/$C$23,0) -> 3.566347385e-05 | HZ22: =_xlfn.EXPON.DIST(HZ23,1/$C$23,0) -> 3.449428611e-05 | IA22: =_xlfn.EXPON.DIST(IA23,1/$C$23,0) -> 3.33634289e-05 | IB22: =_xlfn.EXPON.DIST(IB23,1/$C$23,0) -> 3.22696456e-05 | IC22: =_xlfn.EXPON.DIST(IC23,1/$C$23,0) -> 3.121172078e-05 | ID22: =_xlfn.EXPON.DIST(ID23,1/$C$23,0) -> 3.018847886e-05 | IE22: =_xlfn.EXPON.DIST(IE23,1/$C$23,0) -> 2.91987828e-05 | IF22: =_xlfn.EXPON.DIST(IF23,1/$C$23,0) -> 2.824153284e-05 | IG22: =_xlfn.EXPON.DIST(IG23,1/$C$23,0) -> 2.731566527e-05 | IH22: =_xlfn.EXPON.DIST(IH23,1/$C$23,0) -> 2.642015124e-05 | II22: =_xlfn.EXPON.DIST(II23,1/$C$23,0) -> 2.555399566e-05 | IJ22: =_xlfn.EXPON.DIST(IJ23,1/$C$23,0) -> 2.471623603e-05 | IK22: =_xlfn.EXPON.DIST(IK23,1/$C$23,0) -> 2.390594143e-05 | IL22: =_xlfn.EXPON.DIST(IL23,1/$C$23,0) -> 2.312221145e-05 | IM22: =_xlfn.EXPON.DIST(IM23,1/$C$23,0) -> 2.236417519e-05 | IN22: =_xlfn.EXPON.DIST(IN23,1/$C$23,0) -> 2.163099032e-05 | IO22: =_xlfn.EXPON.DIST(IO23,1/$C$23,0) -> 2.092184211e-05 | IP22: =_xlfn.EXPON.DIST(IP23,1/$C$23,0) -> 2.023594254e-05 | IQ22: =_xlfn.EXPON.DIST(IQ23,1/$C$23,0) -> 1.957252943e-05 | IR22: =_xlfn.EXPON.DIST(IR23,1/$C$23,0) -> 1.893086559e-05 | IS22: =_xlfn.EXPON.DIST(IS23,1/$C$23,0) -> 1.8310238e-05 | IT22: =_xlfn.EXPON.DIST(IT23,1/$C$23,0) -> 1.7709957e-05 | IU22: =_xlfn.EXPON.DIST(IU23,1/$C$23,0) -> 1.712935554e-05 | IV22: =_xlfn.EXPON.DIST(IV23,1/$C$23,0) -> 1.656778847e-05 | IW22: =_xlfn.EXPON.DIST(IW23,1/$C$23,0) -> 1.602463176e-05 | IX22: =_xlfn.EXPON.DIST(IX23,1/$C$23,0) -> 1.549928184e-05 | IY22: =_xlfn.EXPON.DIST(IY23,1/$C$23,0) -> 1.499115495e-05 | IZ22: =_xlfn.EXPON.DIST(IZ23,1/$C$23,0) -> 1.449968643e-05 | JA22: =_xlfn.EXPON.DIST(JA23,1/$C$23,0) -> 1.402433016e-05
B23: mew = expected loading time for truck | C23: 15 | D23: Minutes | F23: x | G23: 0 | H23: =G23+0.5 -> 0.5 | I23: =H23+0.5 -> 1 | J23: 1.5 | K23: 2 | L23: 2.5 | M23: 3 | N23: 3.5 | O23: 4 | P23: 4.5 | Q23: 5 | R23: 5.5 | S23: 6 | T23: 6.5 | U23: 7 | V23: 7.5 | W23: 8 | X23: 8.5 | Y23: 9 | Z23: 9.5 | AA23: 10 | AB23: 10.5 | AC23: 11 | AD23: 11.5 | AE23: 12 | AF23: 12.5 | AG23: 13 | AH23: 13.5 | AI23: 14 | AJ23: 14.5 | AK23: 15 | AL23: 15.5 | AM23: 16 | AN23: 16.5 | AO23: 17 | AP23: 17.5 | AQ23: 18 | AR23: 18.5 | AS23: 19 | AT23: 19.5 | AU23: 20 | AV23: 20.5 | AW23: 21 | AX23: 21.5 | AY23: 22 | AZ23: 22.5 | BA23: 23 | BB23: 23.5 | BC23: 24 | BD23: 24.5 | BE23: 25 | BF23: 25.5 | BG23: 26 | BH23: 26.5 | BI23: 27 | BJ23: 27.5 | BK23: 28 | BL23: 28.5 | BM23: 29 | BN23: 29.5 | BO23: =BN23+0.5 -> 30 | BP23: 30.5 | BQ23: 31 | BR23: 31.5 | BS23: 32 | BT23: 32.5 | BU23: 33 | BV23: 33.5 | BW23: 34 | BX23: 34.5 | BY23: 35 | BZ23: 35.5 | CA23: 36 | CB23: 36.5 | CC23: 37 | CD23: 37.5 | CE23: 38 | CF23: 38.5 | CG23: 39 | CH23: 39.5 | CI23: 40 | CJ23: 40.5 | CK23: 41 | CL23: 41.5 | CM23: 42 | CN23: 42.5 | CO23: 43 | CP23: 43.5 | CQ23: 44 | CR23: 44.5 | CS23: 45 | CT23: 45.5 | CU23: 46 | CV23: 46.5 | CW23: 47 | CX23: 47.5 | CY23: 48 | CZ23: 48.5 | DA23: 49 | DB23: 49.5 | DC23: 50 | DD23: 50.5 | DE23: 51 | DF23: 51.5 | DG23: 52 | DH23: 52.5 | DI23: 53 | DJ23: 53.5 | DK23: 54 | DL23: 54.5 | DM23: 55 | DN23: 55.5 | DO23: 56 | DP23: 56.5 | DQ23: 57 | DR23: 57.5 | DS23: 58 | DT23: 58.5 | DU23: 59 | DV23: 59.5 | DW23: 60 | DX23: 60.5 | DY23: 61 | DZ23: 61.5 | EA23: =DZ23+0.5 -> 62 | EB23: 62.5 | EC23: 63 | ED23: 63.5 | EE23: 64 | EF23: 64.5 | EG23: 65 | EH23: 65.5 | EI23: 66 | EJ23: 66.5 | EK23: 67 | EL23: 67.5 | EM23: 68 | EN23: 68.5 | EO23: 69 | EP23: 69.5 | EQ23: 70 | ER23: 70.5 | ES23: 71 | ET23: 71.5 | EU23: 72 | EV23: 72.5 | EW23: 73 | EX23: 73.5 | EY23: 74 | EZ23: =EY23+0.5 -> 74.5 | FA23: =EZ23+0.5 -> 75 | FB23: 75.5 | FC23: 76 | FD23: 76.5 | FE23: 77 | FF23: 77.5 | FG23: 78 | FH23: 78.5 | FI23: 79 | FJ23: 79.5 | FK23: 80 | FL23: 80.5 | FM23: 81 | FN23: 81.5 | FO23: 82 | FP23: 82.5 | FQ23: 83 | FR23: 83.5 | FS23: 84 | FT23: 84.5 | FU23: 85 | FV23: 85.5 | FW23: 86 | FX23: 86.5 | FY23: 87 | FZ23: 87.5 | GA23: 88 | GB23: 88.5 | GC23: 89 | GD23: 89.5 | GE23: 90 | GF23: 90.5 | GG23: 91 | GH23: 91.5 | GI23: 92 | GJ23: 92.5 | GK23: 93 | GL23: 93.5 | GM23: 94 | GN23: 94.5 | GO23: 95 | GP23: 95.5 | GQ23: 96 | GR23: 96.5 | GS23: 97 | GT23: 97.5 | GU23: 98 | GV23: 98.5 | GW23: 99 | GX23: 99.5 | GY23: 100 | GZ23: 100.5 | HA23: 101 | HB23: 101.5 | HC23: 102 | HD23: 102.5 | HE23: 103 | HF23: 103.5 | HG23: 104 | HH23: 104.5 | HI23: 105 | HJ23: 105.5 | HK23: 106 | HL23: 106.5 | HM23: =HL23+0.5 -> 107 | HN23: 107.5 | HO23: 108 | HP23: 108.5 | HQ23: 109 | HR23: 109.5 | HS23: 110 | HT23: 110.5 | HU23: 111 | HV23: 111.5 | HW23: 112 | HX23: 112.5 | HY23: 113 | HZ23: 113.5 | IA23: 114 | IB23: 114.5 | IC23: 115 | ID23: 115.5 | IE23: 116 | IF23: 116.5 | IG23: 117 | IH23: 117.5 | II23: 118 | IJ23: 118.5 | IK23: 119 | IL23: 119.5 | IM23: 120 | IN23: 120.5 | IO23: 121 | IP23: 121.5 | IQ23: 122 | IR23: 122.5 | IS23: 123 | IT23: 123.5 | IU23: 124 | IV23: 124.5 | IW23: 125 | IX23: 125.5 | IY23: 126 | IZ23: 126.5 | JA23: 127
B24: Random Continuous Variable = x = Time To Load Truck | F24: =B32&" = "&ROUND(C33,4) -> P(6 <= Minutes To Load Truck <= 18) = 0.3691 | G24: =IF(G23>=$C$27,G22,"") ->  | H24: =IF(H23>=$C$27,H22,"") ->  | S24: 0.04468800307 | T24: 0.04322295607 | U24: 0.04180593902 | V24: 0.04043537731 | W24: 0.03910974797 | X24: 0.03782757792 | Y24: 0.03658744241 | Z24: 0.03538796337 | AA24: 0.03422780794 | AB24: 0.03310568692 | AC24: 0.03202035341 | AD24: 0.03097060136 | AE24: 0.02995526427 | AF24: 0.0289732139 | AG24: 0.02802335897 | AH24: 0.02710464398 | AI24: 0.02621604806 | AJ24: 0.02535658377 | AK24: 0.02452529608 | AL24: 0.02372126124 | AM24: 0.02294358579 | AN24: 0.02219140558 | AO24: 0.02146388477 | AP24: 0.02076021493 | AQ24: 0.02007961413 | AR24: 0.01942132608 | AS24: 0.01878461927 | AT24: 0.0181687862 | AU24: 0.01757314254 | AV24: 0.0169970264 | AW24: 0.0164397976 | AX24: 0.01590083692 | AY24: 0.01537954548 | AZ24: 0.01487534401 | BA24: 0.01438767223 | BB24: 0.01391598823 | BC24: 0.01345976787 | BD24: 0.01301850419 | BE24: 0.01259170686 | BF24: 0.0121789016 | BG24: 0.01177962972 | BH24: 0.01139344752 | BI24: 0.01101992588 | BJ24: 0.01065864974 | BK24: 0.01030921764 | BL24: 0.009971241282 | BM24: 0.009644345109 | BN24: 0.009328165868 | BO24: 0.009022352216 | BP24: 0.008726564327 | BQ24: 0.008440473519 | BR24: 0.008163761884 | BS24: 0.007896121934 | BT24: =IF(BT23>=$C$27,BT22,"") -> 0.007637256266 | BU24: 0.007386877224 | BV24: 0.007144706583 | BW24: 0.006910475241 | BX24: 0.006683922915 | BY24: 0.006464797858 | BZ24: 0.006252856574 | CA24: 0.006047863553 | CB24: 0.005849591002 | CC24: 0.005657818598 | CD24: 0.005472333242 | CE24: 0.005292928818 | CF24: 0.005119405972 | CG24: 0.004951571881 | CH24: 0.004789240046 | CI24: 0.004632230082 | CJ24: 0.004480367516 | CK24: 0.004333483598 | CL24: 0.004191415107 | CM24: 0.004054004175 | CN24: 0.003921098109 | CO24: 0.003792549223 | CP24: 0.00366821467 | CQ24: 0.003547956289 | CR24: 0.003431640447 | CS24: 0.003319137891 | CT24: 0.003210323608 | CU24: 0.003105076681 | CV24: 0.00300328016 | CW24: 0.002904820925 | CX24: 0.002809589567 | CY24: 0.002717480265 | CZ24: 0.002628390665 | DA24: 0.00254222177 | DB24: 0.002458877827 | DC24: 0.002378266223 | DD24: 0.002300297382 | DE24: 0.002224884664 | DF24: 0.002151944269 | DG24: 0.002081395144 | DH24: 0.002013158895 | DI24: 0.001947159696 | DJ24: 0.001883324208 | DK24: 0.001821581496 | DL24: 0.001761862952 | DM24: 0.001704102214 | DN24: 0.001648235098 | DO24: 0.001594199524 | DP24: 0.001541935447 | DQ24: 0.00149138479 | DR24: 0.001442491381 | DS24: 0.001395200889 | DT24: 0.001349460763 | DU24: 0.001305220177 | DV24: 0.00126242997 | DW24: 0.001221042593 | DX24: 0.001181012055 | DY24: 0.001142293874 | DZ24: 0.001104845027 | EA24: 0.001068623898 | EB24: 0.00103359024 | EC24: 0.0009997051214 | ED24: 0.0009669308891 | EE24: 0.000935231124 | EF24: =IF(EF23>=$C$27,EF22,"") -> 0.0009045706008 | EG24: 0.0008749152491 | EH24: 0.0008462321155 | EI24: 0.0008184893269 | EJ24: 0.000791656055 | EK24: 0.0007657024825 | EL24: 0.0007405997692 | EM24: 0.0007163200208 | EN24: 0.0006928362572 | EO24: 0.000670122383 | EP24: 0.0006481531581 | EQ24: 0.0006269041701 | ER24: 0.0006063518068 | ES24: 0.0005864732301 | ET24: 0.0005672463506 | EU24: 0.0005486498033 | EV24: 0.0005306629232 | EW24: 0.0005132657233 | EX24: 0.0004964388714 | EY24: 0.0004801636693 | EZ24: 0.0004644220318 | FA24: 0.0004491964666 | FB24: 0.0004344700548 | FC24: 0.0004202264322 | FD24: 0.000406449771 | FE24: 0.0003931247626 | FF24: 0.0003802365999 | FG24: 0.0003677709614 | FH24: 0.0003557139951 | FI24: 0.0003440523033 | FJ24: 0.0003327729271 | FK24: 0.0003218633329 | FL24: 0.0003113113978 | FM24: 0.0003011053962 | FN24: 0.0002912339871 | FO24: 0.0002816862014 | FP24: 0.0002724514292 | FQ24: 0.000263519409 | FR24: 0.0002548802151 | FS24: 0.0002465242478 | FT24: 0.0002384422216 | FU24: 0.0002306251558 | FV24: 0.0002230643638 | FW24: 0.0002157514441 | FX24: 0.0002086782705 | FY24: 0.000201836983 | FZ24: 0.0001952199797 | GA24: 0.0001888199075 | GB24: 0.0001826296546 | GC24: 0.0001766423423 | GD24: 0.0001708513175 | GE24: 0.0001652501451 | GF24: 0.000159832601 | GG24: 0.000154592665 | GH24: 0.0001495245146 | GI24: 0.000144622518 | GJ24: 0.0001398812279 | GK24: 0.0001352953758 | GL24: 0.0001308598657 | GM24: 0.0001265697691 | GN24: 0.0001224203185 | GO24: 0.000118406903 | GP24: 0.000114525063 | GQ24: 0.0001107704849 | GR24: =IF(GR23>=$C$27,GR22,"") -> 0.0001071389964 | GS24: 0.0001036265623 | GT24: 0.0001002292795 | GU24: 9.69433729e-05 | GV24: 9.376519111e-05 | GW24: 9.06912025e-05 | GX24: 8.771799123e-05 | GY24: 8.484225342e-05 | GZ24: 8.206079351e-05 | HA24: 7.93705207e-05 | HB24: 7.676844553e-05 | HC24: 7.425167652e-05 | HD24: 7.181741702e-05 | HE24: 6.946296204e-05 | HF24: 6.718569527e-05 | HG24: 6.498308619e-05 | HH24: 6.285268722e-05 | HI24: 6.079213104e-05 | HJ24: 5.879912792e-05 | HK24: 5.687146322e-05 | HL24: 5.500699488e-05 | HM24: 5.320365109e-05 | HN24: 5.145942794e-05 | HO24: 4.977238723e-05 | HP24: 4.814065428e-05 | HQ24: 4.656241591e-05 | HR24: 4.503591835e-05 | HS24: 4.355946532e-05 | HT24: 4.213141619e-05 | HU24: 4.075018408e-05 | HV24: 3.941423414e-05 | HW24: 3.812208184e-05 | HX24: 3.687229134e-05 | HY24: 3.566347385e-05 | HZ24: 3.449428611e-05 | IA24: 3.33634289e-05 | IB24: 3.22696456e-05 | IC24: 3.121172078e-05 | ID24: 3.018847886e-05 | IE24: 2.91987828e-05 | IF24: 2.824153284e-05 | IG24: 2.731566527e-05 | IH24: 2.642015124e-05 | II24: 2.555399566e-05 | IJ24: 2.471623603e-05 | IK24: 2.390594143e-05 | IL24: 2.312221145e-05 | IM24: 2.236417519e-05 | IN24: 2.163099032e-05 | IO24: 2.092184211e-05 | IP24: 2.023594254e-05 | IQ24: 1.957252943e-05 | IR24: 1.893086559e-05 | IS24: 1.8310238e-05 | IT24: 1.7709957e-05 | IU24: 1.712935554e-05 | IV24: 1.656778847e-05 | IW24: 1.602463176e-05 | IX24: 1.549928184e-05 | IY24: 1.499115495e-05 | IZ24: 1.449968643e-05 | JA24: 1.402433016e-05
B25: X | C25: =D23&" To Load Truck" -> Minutes To Load Truck | F25: =B34&" = "&ROUND(C35,4) -> P(Minutes To Load Truck >= 25) = 0.1889 | G25: =IF(G23>=$C$29,G22,"") ->  | H25: =IF(H23>=$C$29,H22,"") ->  | BE25: 0.01259170686 | BF25: 0.0121789016 | BG25: 0.01177962972 | BH25: 0.01139344752 | BI25: 0.01101992588 | BJ25: 0.01065864974 | BK25: 0.01030921764 | BL25: 0.009971241282 | BM25: 0.009644345109 | BN25: 0.009328165868 | BO25: 0.009022352216 | BP25: 0.008726564327 | BQ25: 0.008440473519 | BR25: 0.008163761884 | BS25: 0.007896121934 | BT25: =IF(BT23>=$C$29,BT22,"") -> 0.007637256266 | BU25: 0.007386877224 | BV25: 0.007144706583 | BW25: 0.006910475241 | BX25: 0.006683922915 | BY25: 0.006464797858 | BZ25: 0.006252856574 | CA25: 0.006047863553 | CB25: 0.005849591002 | CC25: 0.005657818598 | CD25: 0.005472333242 | CE25: 0.005292928818 | CF25: 0.005119405972 | CG25: 0.004951571881 | CH25: 0.004789240046 | CI25: 0.004632230082 | CJ25: 0.004480367516 | CK25: 0.004333483598 | CL25: 0.004191415107 | CM25: 0.004054004175 | CN25: 0.003921098109 | CO25: 0.003792549223 | CP25: 0.00366821467 | CQ25: 0.003547956289 | CR25: 0.003431640447 | CS25: 0.003319137891 | CT25: 0.003210323608 | CU25: 0.003105076681 | CV25: 0.00300328016 | CW25: 0.002904820925 | CX25: 0.002809589567 | CY25: 0.002717480265 | CZ25: 0.002628390665 | DA25: 0.00254222177 | DB25: 0.002458877827 | DC25: 0.002378266223 | DD25: 0.002300297382 | DE25: 0.002224884664 | DF25: 0.002151944269 | DG25: 0.002081395144 | DH25: 0.002013158895 | DI25: 0.001947159696 | DJ25: 0.001883324208 | DK25: 0.001821581496 | DL25: 0.001761862952 | DM25: 0.001704102214 | DN25: 0.001648235098 | DO25: 0.001594199524 | DP25: 0.001541935447 | DQ25: 0.00149138479 | DR25: 0.001442491381 | DS25: 0.001395200889 | DT25: 0.001349460763 | DU25: 0.001305220177 | DV25: 0.00126242997 | DW25: 0.001221042593 | DX25: 0.001181012055 | DY25: 0.001142293874 | DZ25: 0.001104845027 | EA25: 0.001068623898 | EB25: 0.00103359024 | EC25: 0.0009997051214 | ED25: 0.0009669308891 | EE25: 0.000935231124 | EF25: =IF(EF23>=$C$29,EF22,"") -> 0.0009045706008 | EG25: 0.0008749152491 | EH25: 0.0008462321155 | EI25: 0.0008184893269 | EJ25: 0.000791656055 | EK25: 0.0007657024825 | EL25: 0.0007405997692 | EM25: 0.0007163200208 | EN25: 0.0006928362572 | EO25: 0.000670122383 | EP25: 0.0006481531581 | EQ25: 0.0006269041701 | ER25: 0.0006063518068 | ES25: 0.0005864732301 | ET25: 0.0005672463506 | EU25: 0.0005486498033 | EV25: 0.0005306629232 | EW25: 0.0005132657233 | EX25: 0.0004964388714 | EY25: 0.0004801636693 | EZ25: 0.0004644220318 | FA25: 0.0004491964666 | FB25: 0.0004344700548 | FC25: 0.0004202264322 | FD25: 0.000406449771 | FE25: 0.0003931247626 | FF25: 0.0003802365999 | FG25: 0.0003677709614 | FH25: 0.0003557139951 | FI25: 0.0003440523033 | FJ25: 0.0003327729271 | FK25: 0.0003218633329 | FL25: 0.0003113113978 | FM25: 0.0003011053962 | FN25: 0.0002912339871 | FO25: 0.0002816862014 | FP25: 0.0002724514292 | FQ25: 0.000263519409 | FR25: 0.0002548802151 | FS25: 0.0002465242478 | FT25: 0.0002384422216 | FU25: 0.0002306251558 | FV25: 0.0002230643638 | FW25: 0.0002157514441 | FX25: 0.0002086782705 | FY25: 0.000201836983 | FZ25: 0.0001952199797 | GA25: 0.0001888199075 | GB25: 0.0001826296546 | GC25: 0.0001766423423 | GD25: 0.0001708513175 | GE25: 0.0001652501451 | GF25: 0.000159832601 | GG25: 0.000154592665 | GH25: 0.0001495245146 | GI25: 0.000144622518 | GJ25: 0.0001398812279 | GK25: 0.0001352953758 | GL25: 0.0001308598657 | GM25: 0.0001265697691 | GN25: 0.0001224203185 | GO25: 0.000118406903 | GP25: 0.000114525063 | GQ25: 0.0001107704849 | GR25: =IF(GR23>=$C$29,GR22,"") -> 0.0001071389964 | GS25: 0.0001036265623 | GT25: 0.0001002292795 | GU25: 9.69433729e-05 | GV25: 9.376519111e-05 | GW25: 9.06912025e-05 | GX25: 8.771799123e-05 | GY25: 8.484225342e-05 | GZ25: 8.206079351e-05 | HA25: 7.93705207e-05 | HB25: 7.676844553e-05 | HC25: 7.425167652e-05 | HD25: 7.181741702e-05 | HE25: 6.946296204e-05 | HF25: 6.718569527e-05 | HG25: 6.498308619e-05 | HH25: 6.285268722e-05 | HI25: 6.079213104e-05 | HJ25: 5.879912792e-05 | HK25: 5.687146322e-05 | HL25: 5.500699488e-05 | HM25: 5.320365109e-05 | HN25: 5.145942794e-05 | HO25: 4.977238723e-05 | HP25: 4.814065428e-05 | HQ25: 4.656241591e-05 | HR25: 4.503591835e-05 | HS25: 4.355946532e-05 | HT25: 4.213141619e-05 | HU25: 4.075018408e-05 | HV25: 3.941423414e-05 | HW25: 3.812208184e-05 | HX25: 3.687229134e-05 | HY25: 3.566347385e-05 | HZ25: 3.449428611e-05 | IA25: 3.33634289e-05 | IB25: 3.22696456e-05 | IC25: 3.121172078e-05 | ID25: 3.018847886e-05 | IE25: 2.91987828e-05 | IF25: 2.824153284e-05 | IG25: 2.731566527e-05 | IH25: 2.642015124e-05 | II25: 2.555399566e-05 | IJ25: 2.471623603e-05 | IK25: 2.390594143e-05 | IL25: 2.312221145e-05 | IM25: 2.236417519e-05 | IN25: 2.163099032e-05 | IO25: 2.092184211e-05 | IP25: 2.023594254e-05 | IQ25: 1.957252943e-05 | IR25: 1.893086559e-05 | IS25: 1.8310238e-05 | IT25: 1.7709957e-05 | IU25: 1.712935554e-05 | IV25: 1.656778847e-05 | IW25: 1.602463176e-05 | IX25: 1.549928184e-05 | IY25: 1.499115495e-05 | IZ25: 1.449968643e-05 | JA25: 1.402433016e-05
B26: X min | C26: 0
B27: x1 | C27: 6
B28: x2 | C28: 18
B29: x3 | C29: 25
B30: ="P("&C26&" <= "&$C$25&" <= "&C27&")" -> P(0 <= Minutes To Load Truck <= 6) | C30: =1-EXP(1)^-(C27/C23) -> 0.329679954
B31: =B30 -> P(0 <= Minutes To Load Truck <= 6) | C31: =_xlfn.EXPON.DIST(C27,1/C23,1) -> 0.329679954
B32: ="P("&C27&" <= "&$C$25&" <= "&C28&")" -> P(6 <= Minutes To Load Truck <= 18) | C32: =(1-EXP(1)^-(C28/C23))-(1-EXP(1)^-(C27/C23)) -> 0.3691258341
B33: =B32 -> P(6 <= Minutes To Load Truck <= 18) | C33: =_xlfn.EXPON.DIST(C28,1/C23,1)-_xlfn.EXPON.DIST(C27,1/C23,1) -> 0.3691258341
B34: ="P("&$C$25&" >= "&C29&")" -> P(Minutes To Load Truck >= 25) | C34: =1-_xlfn.EXPON.DIST(C29,1/C23,1) -> 0.1888756028
B35: =B34 -> P(Minutes To Load Truck >= 25) | C35: =EXP(1)^-(C29/C23) -> 0.1888756028
B37: Problem 46 chapter 6
B38: Time (minutes) between phone calls at Insurance Claims Office Follows Exponential Distribution
B39: ="x = time between phone calls in "&D41 -> x = time between phone calls in minutes | C39: minutes
B40: 1/μ = | C40: 0.5 | F40: check | G40: =1/C41*EXP(1)^-(G42/C41) -> 0.5
B41: Mew = Expected Mean = | C41: =1/C40 -> 2 | D41: minutes | F41: f(x) | G41: =_xlfn.EXPON.DIST(G42,1/$C$41,0) -> 0.5 | H41: =_xlfn.EXPON.DIST(H42,1/$C$41,0) -> 0.487654956 | I41: =_xlfn.EXPON.DIST(I42,1/$C$41,0) -> 0.4756147123 | J41: 0.4638717432 | K41: 0.452418709 | L41: 0.4412484513 | M41: 0.4303539882 | N41: 0.4197285104 | O41: 0.4093653765 | P41: 0.3992581094 | Q41: 0.3894003915 | R41: 0.3797860616 | S41: 0.3704091103 | T41: 0.3612636768 | U41: 0.3523440449 | V41: 0.3436446394 | W41: 0.335160023 | X41: 0.3268848926 | Y41: 0.3188140758 | Z41: 0.3109425282 | AA41: 0.3032653299 | AB41: 0.2957776822 | AC41: 0.2884749052 | AD41: 0.2813524344 | AE41: 0.274405818 | AF41: 0.2676307143 | AG41: 0.2610228884 | AH41: 0.2545782103 | AI41: 0.2482926519 | AJ41: 0.2421622845 | AK41: 0.2361832764 | AL41: 0.2303518905 | AM41: 0.2246644821 | AN41: 0.2191174962 | AO41: 0.213707466 | AP41: 0.2084310098 | AQ41: 0.2032848299 | AR41: 0.1982657095 | AS41: 0.1933705117 | AT41: 0.1885961768 | AU41: 0.1839397206 | AV41: 0.1793982327 | AW41: 0.1749688746 | AX41: 0.1706488777 | AY41: 0.1664355418 | AZ41: 0.1623262337 | BA41: 0.1583183847 | BB41: 0.1544094898 | BC41: 0.150597106 | BD41: 0.1468788502 | BE41: 0.1432523984 | BF41: 0.1397154841 | BG41: 0.1362658965 | BH41: 0.1329014795 | BI41: 0.1296201303 | BJ41: 0.1264197979 | BK41: 0.123298482 | BL41: 0.1202542316 | BM41: 0.117285144 | BN41: 0.1143893635 | BO41: 0.1115650801 | BP41: 0.1088105284 | BQ41: 0.1061239869 | BR41: 0.1035037763 | BS41: 0.100948259 | BT41: 0.0984558376 | BU41: =_xlfn.EXPON.DIST(BU42,1/$C$41,0) -> 0.09602495431 | BV41: 0.09365408974 | BW41: 0.09134176203 | BX41: 0.08908652589 | BY41: 0.08688697173 | BZ41: 0.08474172475 | CA41: 0.08264944411 | CB41: 0.08060882206 | CC41: 0.07861858316 | CD41: 0.07667748342 | CE41: 0.07478430961 | CF41: 0.07293787843 | CG41: 0.07113703579 | CH41: 0.06938065612 | CI41: 0.06766764162 | CJ41: 0.06599692159 | CK41: 0.06436745179 | CL41: 0.06277821375 | CM41: 0.06122821413 | CN41: 0.05971648413 | CO41: 0.05824207889 | CP41: 0.05680407684 | CQ41: =_xlfn.EXPON.DIST(CQ42,1/$C$41,0) -> 0.05540157918 | CR41: =_xlfn.EXPON.DIST(CR42,1/$C$41,0) -> 0.05403370932 | CS41: =_xlfn.EXPON.DIST(CS42,1/$C$41,0) -> 0.05269961228 | CT41: =_xlfn.EXPON.DIST(CT42,1/$C$41,0) -> 0.05139845422 | CU41: =_xlfn.EXPON.DIST(CU42,1/$C$41,0) -> 0.05012942186 | CV41: =_xlfn.EXPON.DIST(CV42,1/$C$41,0) -> 0.04889172203 | CW41: =_xlfn.EXPON.DIST(CW42,1/$C$41,0) -> 0.04768458111 | CX41: =_xlfn.EXPON.DIST(CX42,1/$C$41,0) -> 0.04650724461 | CY41: =_xlfn.EXPON.DIST(CY42,1/$C$41,0) -> 0.04535897664 | CZ41: =_xlfn.EXPON.DIST(CZ42,1/$C$41,0) -> 0.04423905952 | DA41: =_xlfn.EXPON.DIST(DA42,1/$C$41,0) -> 0.04314679325 | DB41: =_xlfn.EXPON.DIST(DB42,1/$C$41,0) -> 0.04208149513 | DC41: =_xlfn.EXPON.DIST(DC42,1/$C$41,0) -> 0.04104249931 | DD41: =_xlfn.EXPON.DIST(DD42,1/$C$41,0) -> 0.04002915639 | DE41: =_xlfn.EXPON.DIST(DE42,1/$C$41,0) -> 0.039040833 | DF41: =_xlfn.EXPON.DIST(DF42,1/$C$41,0) -> 0.0380769114 | DG41: =_xlfn.EXPON.DIST(DG42,1/$C$41,0) -> 0.03713678911 | DH41: =_xlfn.EXPON.DIST(DH42,1/$C$41,0) -> 0.03621987852 | DI41: =_xlfn.EXPON.DIST(DI42,1/$C$41,0) -> 0.03532560653 | DJ41: =_xlfn.EXPON.DIST(DJ42,1/$C$41,0) -> 0.0344534142 | DK41: =_xlfn.EXPON.DIST(DK42,1/$C$41,0) -> 0.03360275637 | DL41: =_xlfn.EXPON.DIST(DL42,1/$C$41,0) -> 0.03277310136 | DM41: =_xlfn.EXPON.DIST(DM42,1/$C$41,0) -> 0.0319639306 | DN41: =_xlfn.EXPON.DIST(DN42,1/$C$41,0) -> 0.03117473834 | DO41: =_xlfn.EXPON.DIST(DO42,1/$C$41,0) -> 0.03040503131 | DP41: =_xlfn.EXPON.DIST(DP42,1/$C$41,0) -> 0.02965432841 | DQ41: =_xlfn.EXPON.DIST(DQ42,1/$C$41,0) -> 0.02892216044 | DR41: =_xlfn.EXPON.DIST(DR42,1/$C$41,0) -> 0.02820806975 | DS41: =_xlfn.EXPON.DIST(DS42,1/$C$41,0) -> 0.02751161003 | DT41: =_xlfn.EXPON.DIST(DT42,1/$C$41,0) -> 0.02683234596 | DU41: =_xlfn.EXPON.DIST(DU42,1/$C$41,0) -> 0.02616985297 | DV41: =_xlfn.EXPON.DIST(DV42,1/$C$41,0) -> 0.025523717 | DW41: =_xlfn.EXPON.DIST(DW42,1/$C$41,0) -> 0.02489353418 | DX41: =_xlfn.EXPON.DIST(DX42,1/$C$41,0) -> 0.02427891064 | DY41: =_xlfn.EXPON.DIST(DY42,1/$C$41,0) -> 0.0236794622 | DZ41: =_xlfn.EXPON.DIST(DZ42,1/$C$41,0) -> 0.02309481419 | EA41: =_xlfn.EXPON.DIST(EA42,1/$C$41,0) -> 0.0225246012 | EB41: =_xlfn.EXPON.DIST(EB42,1/$C$41,0) -> 0.02196846681 | EC41: =_xlfn.EXPON.DIST(EC42,1/$C$41,0) -> 0.02142606343 | ED41: =_xlfn.EXPON.DIST(ED42,1/$C$41,0) -> 0.02089705204 | EE41: =_xlfn.EXPON.DIST(EE42,1/$C$41,0) -> 0.02038110199 | EF41: =_xlfn.EXPON.DIST(EF42,1/$C$41,0) -> 0.01987789079 | EG41: =_xlfn.EXPON.DIST(EG42,1/$C$41,0) -> 0.01938710392 | EH41: =_xlfn.EXPON.DIST(EH42,1/$C$41,0) -> 0.01890843461 | EI41: =_xlfn.EXPON.DIST(EI42,1/$C$41,0) -> 0.0184415837 | EJ41: =_xlfn.EXPON.DIST(EJ42,1/$C$41,0) -> 0.01798625938 | EK41: =_xlfn.EXPON.DIST(EK42,1/$C$41,0) -> 0.01754217705 | EL41: =_xlfn.EXPON.DIST(EL42,1/$C$41,0) -> 0.01710905916 | EM41: =_xlfn.EXPON.DIST(EM42,1/$C$41,0) -> 0.01668663498 | EN41: =_xlfn.EXPON.DIST(EN42,1/$C$41,0) -> 0.01627464049 | EO41: =_xlfn.EXPON.DIST(EO42,1/$C$41,0) -> 0.01587281819 | EP41: =_xlfn.EXPON.DIST(EP42,1/$C$41,0) -> 0.01548091691 | EQ41: =_xlfn.EXPON.DIST(EQ42,1/$C$41,0) -> 0.01509869171 | ER41: =_xlfn.EXPON.DIST(ER42,1/$C$41,0) -> 0.01472590368 | ES41: =_xlfn.EXPON.DIST(ES42,1/$C$41,0) -> 0.01436231983 | ET41: =_xlfn.EXPON.DIST(ET42,1/$C$41,0) -> 0.01400771289 | EU41: =_xlfn.EXPON.DIST(EU42,1/$C$41,0) -> 0.01366186122 | EV41: =_xlfn.EXPON.DIST(EV42,1/$C$41,0) -> 0.01332454867 | EW41: =_xlfn.EXPON.DIST(EW42,1/$C$41,0) -> 0.01299556439 | EX41: =_xlfn.EXPON.DIST(EX42,1/$C$41,0) -> 0.01267470276 | EY41: =_xlfn.EXPON.DIST(EY42,1/$C$41,0) -> 0.01236176324 | EZ41: =_xlfn.EXPON.DIST(EZ42,1/$C$41,0) -> 0.01205655021 | FA41: =_xlfn.EXPON.DIST(FA42,1/$C$41,0) -> 0.01175887293 | FB41: =_xlfn.EXPON.DIST(FB42,1/$C$41,0) -> 0.01146854532 | FC41: =_xlfn.EXPON.DIST(FC42,1/$C$41,0) -> 0.01118538593 | FD41: =_xlfn.EXPON.DIST(FD42,1/$C$41,0) -> 0.01090921777 | FE41: =_xlfn.EXPON.DIST(FE42,1/$C$41,0) -> 0.01063986822 | FF41: =_xlfn.EXPON.DIST(FF42,1/$C$41,0) -> 0.01037716894 | FG41: =_xlfn.EXPON.DIST(FG42,1/$C$41,0) -> 0.01012095572 | FH41: =_xlfn.EXPON.DIST(FH42,1/$C$41,0) -> 0.009871068436 | FI41: =_xlfn.EXPON.DIST(FI42,1/$C$41,0) -> 0.009627350888 | FJ41: =_xlfn.EXPON.DIST(FJ42,1/$C$41,0) -> 0.009389650747 | FK41: =_xlfn.EXPON.DIST(FK42,1/$C$41,0) -> 0.009157819444 | FL41: =_xlfn.EXPON.DIST(FL42,1/$C$41,0) -> 0.008931712077 | FM41: =_xlfn.EXPON.DIST(FM42,1/$C$41,0) -> 0.00871118732 | FN41: =_xlfn.EXPON.DIST(FN42,1/$C$41,0) -> 0.008496107338 | FO41: =_xlfn.EXPON.DIST(FO42,1/$C$41,0) -> 0.008286337701 | FP41: =_xlfn.EXPON.DIST(FP42,1/$C$41,0) -> 0.008081747294 | FQ41: =_xlfn.EXPON.DIST(FQ42,1/$C$41,0) -> 0.007882208242 | FR41: =_xlfn.EXPON.DIST(FR42,1/$C$41,0) -> 0.007687595828 | FS41: =_xlfn.EXPON.DIST(FS42,1/$C$41,0) -> 0.00749778841 | FT41: =_xlfn.EXPON.DIST(FT42,1/$C$41,0) -> 0.007312667355 | FU41: =_xlfn.EXPON.DIST(FU42,1/$C$41,0) -> 0.007132116954 | FV41: =_xlfn.EXPON.DIST(FV42,1/$C$41,0) -> 0.006956024359 | FW41: =_xlfn.EXPON.DIST(FW42,1/$C$41,0) -> 0.006784279506 | FX41: 0.006616775048 | FY41: =_xlfn.EXPON.DIST(FY42,1/$C$41,0) -> 0.00645340629 | FZ41: =_xlfn.EXPON.DIST(FZ42,1/$C$41,0) -> 0.006294071121 | GA41: =_xlfn.EXPON.DIST(GA42,1/$C$41,0) -> 0.006138669952 | GB41: =_xlfn.EXPON.DIST(GB42,1/$C$41,0) -> 0.00598710565 | GC41: =_xlfn.EXPON.DIST(GC42,1/$C$41,0) -> 0.005839283485 | GD41: =_xlfn.EXPON.DIST(GD42,1/$C$41,0) -> 0.005695111062 | GE41: =_xlfn.EXPON.DIST(GE42,1/$C$41,0) -> 0.005554498269 | GF41: =_xlfn.EXPON.DIST(GF42,1/$C$41,0) -> 0.005417357218 | GG41: =_xlfn.EXPON.DIST(GG42,1/$C$41,0) -> 0.005283602192 | GH41: =_xlfn.EXPON.DIST(GH42,1/$C$41,0) -> 0.005153149589 | GI41: =_xlfn.EXPON.DIST(GI42,1/$C$41,0) -> 0.005025917872 | GJ41: =_xlfn.EXPON.DIST(GJ42,1/$C$41,0) -> 0.004901827518 | GK41: =_xlfn.EXPON.DIST(GK42,1/$C$41,0) -> 0.004780800965 | GL41: =_xlfn.EXPON.DIST(GL42,1/$C$41,0) -> 0.004662762569 | GM41: =_xlfn.EXPON.DIST(GM42,1/$C$41,0) -> 0.004547638551 | GN41: =_xlfn.EXPON.DIST(GN42,1/$C$41,0) -> 0.004435356955 | GO41: =_xlfn.EXPON.DIST(GO42,1/$C$41,0) -> 0.004325847602 | GP41: =_xlfn.EXPON.DIST(GP42,1/$C$41,0) -> 0.004219042044 | GQ41: =_xlfn.EXPON.DIST(GQ42,1/$C$41,0) -> 0.004114873525 | GR41: =_xlfn.EXPON.DIST(GR42,1/$C$41,0) -> 0.004013276935 | GS41: =_xlfn.EXPON.DIST(GS42,1/$C$41,0) -> 0.003914188775 | GT41: =_xlfn.EXPON.DIST(GT42,1/$C$41,0) -> 0.003817547109 | GU41: =_xlfn.EXPON.DIST(GU42,1/$C$41,0) -> 0.003723291535 | GV41: =_xlfn.EXPON.DIST(GV42,1/$C$41,0) -> 0.00363136314 | GW41: =_xlfn.EXPON.DIST(GW42,1/$C$41,0) -> 0.003541704465 | GX41: =_xlfn.EXPON.DIST(GX42,1/$C$41,0) -> 0.00345425947 | GY41: =_xlfn.EXPON.DIST(GY42,1/$C$41,0) -> 0.0033689735 | GZ41: =_xlfn.EXPON.DIST(GZ42,1/$C$41,0) -> 0.003285793247 | HA41: =_xlfn.EXPON.DIST(HA42,1/$C$41,0) -> 0.003204666723 | HB41: =_xlfn.EXPON.DIST(HB42,1/$C$41,0) -> 0.00312554322 | HC41: =_xlfn.EXPON.DIST(HC42,1/$C$41,0) -> 0.003048373283 | HD41: =_xlfn.EXPON.DIST(HD42,1/$C$41,0) -> 0.002973108678 | HE41: =_xlfn.EXPON.DIST(HE42,1/$C$41,0) -> 0.002899702363 | HF41: =_xlfn.EXPON.DIST(HF42,1/$C$41,0) -> 0.002828108457 | HG41: =_xlfn.EXPON.DIST(HG42,1/$C$41,0) -> 0.00275828221 | HH41: =_xlfn.EXPON.DIST(HH42,1/$C$41,0) -> 0.00269017998 | HI41: =_xlfn.EXPON.DIST(HI42,1/$C$41,0) -> 0.0026237592 | HJ41: =_xlfn.EXPON.DIST(HJ42,1/$C$41,0) -> 0.002558978354 | HK41: =_xlfn.EXPON.DIST(HK42,1/$C$41,0) -> 0.002495796953 | HL41: =_xlfn.EXPON.DIST(HL42,1/$C$41,0) -> 0.002434175507 | HM41: =_xlfn.EXPON.DIST(HM42,1/$C$41,0) -> 0.0023740755 | HN41: =_xlfn.EXPON.DIST(HN42,1/$C$41,0) -> 0.002315459367 | HO41: =_xlfn.EXPON.DIST(HO42,1/$C$41,0) -> 0.002258290471 | HP41: =_xlfn.EXPON.DIST(HP42,1/$C$41,0) -> 0.002202533081 | HQ41: =_xlfn.EXPON.DIST(HQ42,1/$C$41,0) -> 0.002148152345 | HR41: =_xlfn.EXPON.DIST(HR42,1/$C$41,0) -> 0.002095114275 | HS41: =_xlfn.EXPON.DIST(HS42,1/$C$41,0) -> 0.002043385719 | HT41: =_xlfn.EXPON.DIST(HT42,1/$C$41,0) -> 0.001992934346 | HU41: =_xlfn.EXPON.DIST(HU42,1/$C$41,0) -> 0.001943728622 | HV41: =_xlfn.EXPON.DIST(HV42,1/$C$41,0) -> 0.001895737791 | HW41: =_xlfn.EXPON.DIST(HW42,1/$C$41,0) -> 0.001848931858 | HX41: =_xlfn.EXPON.DIST(HX42,1/$C$41,0) -> 0.001803281568 | HY41: =_xlfn.EXPON.DIST(HY42,1/$C$41,0) -> 0.001758758387 | HZ41: =_xlfn.EXPON.DIST(HZ42,1/$C$41,0) -> 0.001715334488 | IA41: =_xlfn.EXPON.DIST(IA42,1/$C$41,0) -> 0.001672982729 | IB41: =_xlfn.EXPON.DIST(IB42,1/$C$41,0) -> 0.001631676638 | IC41: =_xlfn.EXPON.DIST(IC42,1/$C$41,0) -> 0.001591390398 | ID41: =_xlfn.EXPON.DIST(ID42,1/$C$41,0) -> 0.001552098829 | IE41: =_xlfn.EXPON.DIST(IE42,1/$C$41,0) -> 0.001513777373 | IF41: =_xlfn.EXPON.DIST(IF42,1/$C$41,0) -> 0.001476402076 | IG41: =_xlfn.EXPON.DIST(IG42,1/$C$41,0) -> 0.001439949579 | IH41: =_xlfn.EXPON.DIST(IH42,1/$C$41,0) -> 0.001404397097 | II41: =_xlfn.EXPON.DIST(II42,1/$C$41,0) -> 0.001369722409 | IJ41: =_xlfn.EXPON.DIST(IJ42,1/$C$41,0) -> 0.001335903843 | IK41: =_xlfn.EXPON.DIST(IK42,1/$C$41,0) -> 0.001302920259 | IL41: =_xlfn.EXPON.DIST(IL42,1/$C$41,0) -> 0.001270751043 | IM41: =_xlfn.EXPON.DIST(IM42,1/$C$41,0) -> 0.001239376088 | IN41: =_xlfn.EXPON.DIST(IN42,1/$C$41,0) -> 0.001208775784 | IO41: =_xlfn.EXPON.DIST(IO42,1/$C$41,0) -> 0.001178931003 | IP41: =_xlfn.EXPON.DIST(IP42,1/$C$41,0) -> 0.001149823093 | IQ41: =_xlfn.EXPON.DIST(IQ42,1/$C$41,0) -> 0.00112143386 | IR41: =_xlfn.EXPON.DIST(IR42,1/$C$41,0) -> 0.001093745559 | IS41: =_xlfn.EXPON.DIST(IS42,1/$C$41,0) -> 0.001066740885 | IT41: =_xlfn.EXPON.DIST(IT42,1/$C$41,0) -> 0.001040402959 | IU41: =_xlfn.EXPON.DIST(IU42,1/$C$41,0) -> 0.001014715318 | IV41: =_xlfn.EXPON.DIST(IV42,1/$C$41,0) -> 0.0009896619077 | IW41: =_xlfn.EXPON.DIST(IW42,1/$C$41,0) -> 0.0009652270681 | IX41: =_xlfn.EXPON.DIST(IX42,1/$C$41,0) -> 0.0009413955269 | IY41: =_xlfn.EXPON.DIST(IY42,1/$C$41,0) -> 0.0009181523885 | IZ41: =_xlfn.EXPON.DIST(IZ42,1/$C$41,0) -> 0.0008954831253 | JA41: =_xlfn.EXPON.DIST(JA42,1/$C$41,0) -> 0.0008733735681 | JB41: =_xlfn.EXPON.DIST(JB42,1/$C$41,0) -> 0.0008518098979 | JC41: =_xlfn.EXPON.DIST(JC42,1/$C$41,0) -> 0.0008307786366 | JD41: =_xlfn.EXPON.DIST(JD42,1/$C$41,0) -> 0.000810266639 | JE41: =_xlfn.EXPON.DIST(JE42,1/$C$41,0) -> 0.0007902610844 | JF41: =_xlfn.EXPON.DIST(JF42,1/$C$41,0) -> 0.0007707494687 | JG41: =_xlfn.EXPON.DIST(JG42,1/$C$41,0) -> 0.0007517195965 | JH41: =_xlfn.EXPON.DIST(JH42,1/$C$41,0) -> 0.0007331595735 | JI41: =_xlfn.EXPON.DIST(JI42,1/$C$41,0) -> 0.0007150577992 | JJ41: =_xlfn.EXPON.DIST(JJ42,1/$C$41,0) -> 0.0006974029592 | JK41: =_xlfn.EXPON.DIST(JK42,1/$C$41,0) -> 0.0006801840188 | JL41: =_xlfn.EXPON.DIST(JL42,1/$C$41,0) -> 0.0006633902155 | JM41: =_xlfn.EXPON.DIST(JM42,1/$C$41,0) -> 0.0006470110527 | JN41: =_xlfn.EXPON.DIST(JN42,1/$C$41,0) -> 0.0006310362929 | JO41: =_xlfn.EXPON.DIST(JO42,1/$C$41,0) -> 0.0006154559513 | JP41: =_xlfn.EXPON.DIST(JP42,1/$C$41,0) -> 0.0006002602898 | JQ41: =_xlfn.EXPON.DIST(JQ42,1/$C$41,0) -> 0.0005854398104 | JR41: =_xlfn.EXPON.DIST(JR42,1/$C$41,0) -> 0.00057098525 | JS41: =_xlfn.EXPON.DIST(JS42,1/$C$41,0) -> 0.0005568875739 | JT41: =_xlfn.EXPON.DIST(JT42,1/$C$41,0) -> 0.0005431379707 | JU41: =_xlfn.EXPON.DIST(JU42,1/$C$41,0) -> 0.0005297278465 | JV41: =_xlfn.EXPON.DIST(JV42,1/$C$41,0) -> 0.0005166488193 | JW41: =_xlfn.EXPON.DIST(JW42,1/$C$41,0) -> 0.0005038927145 | JX41: =_xlfn.EXPON.DIST(JX42,1/$C$41,0) -> 0.0004914515591 | JY41: =_xlfn.EXPON.DIST(JY42,1/$C$41,0) -> 0.0004793175768 | JZ41: =_xlfn.EXPON.DIST(JZ42,1/$C$41,0) -> 0.0004674831837 | KA41: =_xlfn.EXPON.DIST(KA42,1/$C$41,0) -> 0.0004559409828 | KB41: =_xlfn.EXPON.DIST(KB42,1/$C$41,0) -> 0.0004446837598 | KC41: =_xlfn.EXPON.DIST(KC42,1/$C$41,0) -> 0.0004337044787 | KD41: =_xlfn.EXPON.DIST(KD42,1/$C$41,0) -> 0.0004229962769 | KE41: =_xlfn.EXPON.DIST(KE42,1/$C$41,0) -> 0.0004125524616 | KF41: =_xlfn.EXPON.DIST(KF42,1/$C$41,0) -> 0.0004023665051 | KG41: =_xlfn.EXPON.DIST(KG42,1/$C$41,0) -> 0.0003924320407 | KH41: =_xlfn.EXPON.DIST(KH42,1/$C$41,0) -> 0.000382742859 | KI41: =_xlfn.EXPON.DIST(KI42,1/$C$41,0) -> 0.0003732929042 | KJ41: =_xlfn.EXPON.DIST(KJ42,1/$C$41,0) -> 0.0003640762695 | KK41: =_xlfn.EXPON.DIST(KK42,1/$C$41,0) -> 0.0003550871944 | KL41: =_xlfn.EXPON.DIST(KL42,1/$C$41,0) -> 0.0003463200604 | KM41: =_xlfn.EXPON.DIST(KM42,1/$C$41,0) -> 0.0003377693876 | KN41: =_xlfn.EXPON.DIST(KN42,1/$C$41,0) -> 0.0003294298317 | KO41: =_xlfn.EXPON.DIST(KO42,1/$C$41,0) -> 0.0003212961802 | KP41: =_xlfn.EXPON.DIST(KP42,1/$C$41,0) -> 0.0003133633492 | KQ41: =_xlfn.EXPON.DIST(KQ42,1/$C$41,0) -> 0.0003056263806 | KR41: =_xlfn.EXPON.DIST(KR42,1/$C$41,0) -> 0.0002980804383 | KS41: =_xlfn.EXPON.DIST(KS42,1/$C$41,0) -> 0.0002907208061 | KT41: =_xlfn.EXPON.DIST(KT42,1/$C$41,0) -> 0.0002835428838 | KU41: =_xlfn.EXPON.DIST(KU42,1/$C$41,0) -> 0.0002765421851 | KV41: =_xlfn.EXPON.DIST(KV42,1/$C$41,0) -> 0.0002697143342 | KW41: =_xlfn.EXPON.DIST(KW42,1/$C$41,0) -> 0.0002630550636 | KX41: =_xlfn.EXPON.DIST(KX42,1/$C$41,0) -> 0.0002565602109 | KY41: =_xlfn.EXPON.DIST(KY42,1/$C$41,0) -> 0.0002502257167 | KZ41: =_xlfn.EXPON.DIST(KZ42,1/$C$41,0) -> 0.0002440476218 | LA41: =_xlfn.EXPON.DIST(LA42,1/$C$41,0) -> 0.0002380220645 | LB41: =_xlfn.EXPON.DIST(LB42,1/$C$41,0) -> 0.0002321452788 | LC41: =_xlfn.EXPON.DIST(LC42,1/$C$41,0) -> 0.0002264135914 | LD41: =_xlfn.EXPON.DIST(LD42,1/$C$41,0) -> 0.00022082342 | LE41: =_xlfn.EXPON.DIST(LE42,1/$C$41,0) -> 0.0002153712703 | LF41: =_xlfn.EXPON.DIST(LF42,1/$C$41,0) -> 0.0002100537347 | LG41: =_xlfn.EXPON.DIST(LG42,1/$C$41,0) -> 0.0002048674895 | LH41: =_xlfn.EXPON.DIST(LH42,1/$C$41,0) -> 0.0001998092932 | LI41: =_xlfn.EXPON.DIST(LI42,1/$C$41,0) -> 0.0001948759841 | LJ41: =_xlfn.EXPON.DIST(LJ42,1/$C$41,0) -> 0.0001900644789 | LK41: =_xlfn.EXPON.DIST(LK42,1/$C$41,0) -> 0.0001853717702 | LL41: =_xlfn.EXPON.DIST(LL42,1/$C$41,0) -> 0.0001807949249 | LM41: =_xlfn.EXPON.DIST(LM42,1/$C$41,0) -> 0.0001763310823 | LN41: =_xlfn.EXPON.DIST(LN42,1/$C$41,0) -> 0.0001719774524 | LO41: =_xlfn.EXPON.DIST(LO42,1/$C$41,0) -> 0.000167731314 | LP41: =_xlfn.EXPON.DIST(LP42,1/$C$41,0) -> 0.0001635900131 | LQ41: =_xlfn.EXPON.DIST(LQ42,1/$C$41,0) -> 0.0001595509612 | LR41: =_xlfn.EXPON.DIST(LR42,1/$C$41,0) -> 0.000155611634 | LS41: =_xlfn.EXPON.DIST(LS42,1/$C$41,0) -> 0.000151769569 | LT41: =_xlfn.EXPON.DIST(LT42,1/$C$41,0) -> 0.000148022365 | LU41: =_xlfn.EXPON.DIST(LU42,1/$C$41,0) -> 0.0001443676798 | LV41: =_xlfn.EXPON.DIST(LV42,1/$C$41,0) -> 0.0001408032291 | LW41: =_xlfn.EXPON.DIST(LW42,1/$C$41,0) -> 0.000137326785 | LX41: =_xlfn.EXPON.DIST(LX42,1/$C$41,0) -> 0.0001339361746 | LY41: =_xlfn.EXPON.DIST(LY42,1/$C$41,0) -> 0.0001306292787 | LZ41: =_xlfn.EXPON.DIST(LZ42,1/$C$41,0) -> 0.0001274040303 | MA41: =_xlfn.EXPON.DIST(MA42,1/$C$41,0) -> 0.0001242584136 | MB41: =_xlfn.EXPON.DIST(MB42,1/$C$41,0) -> 0.0001211904624 | MC41: =_xlfn.EXPON.DIST(MC42,1/$C$41,0) -> 0.0001181982592 | MD41: =_xlfn.EXPON.DIST(MD42,1/$C$41,0) -> 0.0001152799338 | ME41: =_xlfn.EXPON.DIST(ME42,1/$C$41,0) -> 0.0001124336621 | MF41: =_xlfn.EXPON.DIST(MF42,1/$C$41,0) -> 0.0001096576651 | MG41: =_xlfn.EXPON.DIST(MG42,1/$C$41,0) -> 0.0001069502077 | MH41: =_xlfn.EXPON.DIST(MH42,1/$C$41,0) -> 0.0001043095976 | MI41: =_xlfn.EXPON.DIST(MI42,1/$C$41,0) -> 0.0001017341845 | MJ41: =_xlfn.EXPON.DIST(MJ42,1/$C$41,0) -> 9.922235854e-05 | MK41: =_xlfn.EXPON.DIST(MK42,1/$C$41,0) -> 9.677254978e-05 | ML41: =_xlfn.EXPON.DIST(ML42,1/$C$41,0) -> 9.438322701e-05 | MM41: =_xlfn.EXPON.DIST(MM42,1/$C$41,0) -> 9.205289683e-05 | MN41: =_xlfn.EXPON.DIST(MN42,1/$C$41,0) -> 8.978010271e-05 | MO41: =_xlfn.EXPON.DIST(MO42,1/$C$41,0) -> 8.756342408e-05 | MP41: =_xlfn.EXPON.DIST(MP42,1/$C$41,0) -> 8.540147544e-05 | MQ41: =_xlfn.EXPON.DIST(MQ42,1/$C$41,0) -> 8.329290549e-05 | MR41: =_xlfn.EXPON.DIST(MR42,1/$C$41,0) -> 8.123639633e-05 | MS41: =_xlfn.EXPON.DIST(MS42,1/$C$41,0) -> 7.923066256e-05 | MT41: =_xlfn.EXPON.DIST(MT42,1/$C$41,0) -> 7.727445053e-05 | MU41: =_xlfn.EXPON.DIST(MU42,1/$C$41,0) -> 7.536653755e-05 | MV41: =_xlfn.EXPON.DIST(MV42,1/$C$41,0) -> 7.350573111e-05 | MW41: =_xlfn.EXPON.DIST(MW42,1/$C$41,0) -> 7.169086814e-05 | MX41: =_xlfn.EXPON.DIST(MX42,1/$C$41,0) -> 6.99208143e-05 | MY41: =_xlfn.EXPON.DIST(MY42,1/$C$41,0) -> 6.819446324e-05 | MZ41: =_xlfn.EXPON.DIST(MZ42,1/$C$41,0) -> 6.651073594e-05 | NA41: =_xlfn.EXPON.DIST(NA42,1/$C$41,0) -> 6.486858002e-05 | NB41: =_xlfn.EXPON.DIST(NB42,1/$C$41,0) -> 6.326696908e-05 | NC41: =_xlfn.EXPON.DIST(NC42,1/$C$41,0) -> 6.170490204e-05 | ND41: =_xlfn.EXPON.DIST(ND42,1/$C$41,0) -> 6.018140258e-05 | NE41: =_xlfn.EXPON.DIST(NE42,1/$C$41,0) -> 5.869551846e-05 | NF41: =_xlfn.EXPON.DIST(NF42,1/$C$41,0) -> 5.724632095e-05 | NG41: =_xlfn.EXPON.DIST(NG42,1/$C$41,0) -> 5.583290425e-05 | NH41: =_xlfn.EXPON.DIST(NH42,1/$C$41,0) -> 5.445438493e-05 | NI41: =_xlfn.EXPON.DIST(NI42,1/$C$41,0) -> 5.310990137e-05 | NJ41: =_xlfn.EXPON.DIST(NJ42,1/$C$41,0) -> 5.179861324e-05 | NK41: =_xlfn.EXPON.DIST(NK42,1/$C$41,0) -> 5.051970092e-05 | NL41: =_xlfn.EXPON.DIST(NL42,1/$C$41,0) -> 4.927236506e-05 | NM41: =_xlfn.EXPON.DIST(NM42,1/$C$41,0) -> 4.805582603e-05 | NN41: =_xlfn.EXPON.DIST(NN42,1/$C$41,0) -> 4.686932346e-05 | NO41: =_xlfn.EXPON.DIST(NO42,1/$C$41,0) -> 4.571211574e-05
F42: x | G42: 0 | H42: =G42+0.05 -> 0.05 | I42: =H42+0.05 -> 0.1 | J42: 0.15 | K42: 0.2 | L42: 0.25 | M42: 0.3 | N42: 0.35 | O42: 0.4 | P42: 0.45 | Q42: 0.5 | R42: 0.55 | S42: 0.6 | T42: 0.65 | U42: 0.7 | V42: 0.75 | W42: 0.8 | X42: 0.85 | Y42: 0.9 | Z42: 0.95 | AA42: 1 | AB42: 1.05 | AC42: 1.1 | AD42: 1.15 | AE42: 1.2 | AF42: 1.25 | AG42: 1.3 | AH42: 1.35 | AI42: 1.4 | AJ42: 1.45 | AK42: 1.5 | AL42: 1.55 | AM42: 1.6 | AN42: 1.65 | AO42: 1.7 | AP42: 1.75 | AQ42: 1.8 | AR42: 1.85 | AS42: 1.9 | AT42: 1.95 | AU42: 2 | AV42: 2.05 | AW42: 2.1 | AX42: 2.15 | AY42: 2.2 | AZ42: 2.25 | BA42: 2.3 | BB42: 2.35 | BC42: 2.4 | BD42: 2.45 | BE42: 2.5 | BF42: 2.55 | BG42: 2.6 | BH42: 2.65 | BI42: 2.7 | BJ42: 2.75 | BK42: 2.8 | BL42: 2.85 | BM42: 2.9 | BN42: 2.95 | BO42: 3 | BP42: 3.05 | BQ42: 3.1 | BR42: 3.15 | BS42: 3.2 | BT42: 3.25 | BU42: =BT42+0.05 -> 3.3 | BV42: 3.35 | BW42: 3.4 | BX42: 3.45 | BY42: 3.5 | BZ42: 3.55 | CA42: 3.6 | CB42: 3.65 | CC42: 3.7 | CD42: 3.75 | CE42: 3.8 | CF42: 3.85 | CG42: 3.9 | CH42: 3.95 | CI42: 4 | CJ42: 4.05 | CK42: 4.1 | CL42: 4.15 | CM42: 4.2 | CN42: 4.25 | CO42: 4.3 | CP42: 4.35 | CQ42: 4.4 | CR42: 4.45 | CS42: 4.5 | CT42: 4.55 | CU42: 4.6 | CV42: 4.65 | CW42: 4.7 | CX42: 4.75 | CY42: 4.8 | CZ42: 4.85 | DA42: 4.9 | DB42: 4.95 | DC42: 5 | DD42: 5.05 | DE42: 5.1 | DF42: 5.15 | DG42: 5.2 | DH42: 5.25 | DI42: 5.3 | DJ42: 5.35 | DK42: 5.4 | DL42: 5.45 | DM42: 5.5 | DN42: 5.55 | DO42: 5.6 | DP42: 5.65 | DQ42: 5.7 | DR42: 5.75 | DS42: 5.8 | DT42: 5.85 | DU42: 5.9 | DV42: 5.95 | DW42: 6 | DX42: 6.05 | DY42: 6.1 | DZ42: 6.15 | EA42: 6.2 | EB42: 6.25 | EC42: 6.3 | ED42: 6.35 | EE42: 6.4 | EF42: 6.45 | EG42: =EF42+0.05 -> 6.5 | EH42: 6.55 | EI42: 6.6 | EJ42: 6.65 | EK42: 6.7 | EL42: 6.75 | EM42: 6.8 | EN42: 6.85 | EO42: 6.9 | EP42: 6.95 | EQ42: 7 | ER42: 7.05 | ES42: 7.1 | ET42: 7.15 | EU42: 7.2 | EV42: 7.25 | EW42: 7.3 | EX42: 7.35 | EY42: 7.4 | EZ42: 7.45 | FA42: 7.5 | FB42: 7.55 | FC42: 7.6 | FD42: 7.65 | FE42: 7.7 | FF42: 7.75 | FG42: 7.8 | FH42: 7.85 | FI42: 7.9 | FJ42: 7.95 | FK42: 8 | FL42: 8.05 | FM42: 8.1 | FN42: 8.15 | FO42: 8.2 | FP42: 8.25 | FQ42: 8.3 | FR42: 8.35 | FS42: 8.4 | FT42: 8.45 | FU42: 8.5 | FV42: 8.55 | FW42: 8.6 | FX42: 8.65 | FY42: 8.7 | FZ42: 8.75 | GA42: 8.8 | GB42: 8.85 | GC42: 8.9 | GD42: 8.95 | GE42: 9 | GF42: 9.05 | GG42: 9.1 | GH42: 9.15 | GI42: 9.2 | GJ42: 9.25 | GK42: 9.3 | GL42: 9.35 | GM42: 9.4 | GN42: 9.45 | GO42: 9.5 | GP42: 9.55 | GQ42: 9.6 | GR42: 9.65 | GS42: =GR42+0.05 -> 9.7 | GT42: 9.75 | GU42: 9.8 | GV42: 9.85 | GW42: 9.9 | GX42: 9.95 | GY42: 10 | GZ42: 10.05 | HA42: 10.1 | HB42: 10.15 | HC42: 10.2 | HD42: 10.25 | HE42: 10.3 | HF42: 10.35 | HG42: 10.4 | HH42: 10.45 | HI42: 10.5 | HJ42: 10.55 | HK42: 10.6 | HL42: 10.65 | HM42: 10.7 | HN42: 10.75 | HO42: 10.8 | HP42: 10.85 | HQ42: 10.9 | HR42: 10.95 | HS42: 11 | HT42: 11.05 | HU42: 11.1 | HV42: 11.15 | HW42: 11.2 | HX42: 11.25 | HY42: 11.3 | HZ42: 11.35 | IA42: 11.4 | IB42: 11.45 | IC42: 11.5 | ID42: 11.55 | IE42: 11.6 | IF42: 11.65 | IG42: 11.7 | IH42: 11.75 | II42: 11.8 | IJ42: 11.85 | IK42: 11.9 | IL42: 11.95 | IM42: 12 | IN42: 12.05 | IO42: 12.1 | IP42: 12.15 | IQ42: 12.2 | IR42: 12.25 | IS42: 12.3 | IT42: 12.35 | IU42: 12.4 | IV42: 12.45 | IW42: 12.5 | IX42: 12.55 | IY42: 12.6 | IZ42: 12.65 | JA42: 12.7 | JB42: =JA42+0.05 -> 12.75 | JC42: =JB42+0.05 -> 12.8 | JD42: 12.85 | JE42: 12.9 | JF42: 12.95 | JG42: 13 | JH42: 13.05 | JI42: 13.1 | JJ42: 13.15 | JK42: 13.2 | JL42: 13.25 | JM42: 13.3 | JN42: 13.35 | JO42: 13.4 | JP42: 13.45 | JQ42: 13.5 | JR42: 13.55 | JS42: 13.6 | JT42: 13.65 | JU42: 13.7 | JV42: 13.75 | JW42: 13.8 | JX42: 13.85 | JY42: 13.9 | JZ42: 13.95 | KA42: 14 | KB42: 14.05 | KC42: 14.1 | KD42: 14.15 | KE42: 14.2 | KF42: 14.25 | KG42: 14.3 | KH42: 14.35 | KI42: 14.4 | KJ42: 14.45 | KK42: 14.5 | KL42: 14.55 | KM42: 14.6 | KN42: 14.65 | KO42: 14.7 | KP42: 14.75 | KQ42: 14.8 | KR42: 14.85 | KS42: 14.9 | KT42: 14.95 | KU42: 15 | KV42: 15.05 | KW42: 15.1 | KX42: 15.15 | KY42: 15.2 | KZ42: 15.25 | LA42: 15.3 | LB42: 15.35 | LC42: 15.4 | LD42: 15.45 | LE42: 15.5 | LF42: 15.55 | LG42: 15.6 | LH42: 15.65 | LI42: 15.7 | LJ42: 15.75 | LK42: 15.8 | LL42: 15.85 | LM42: 15.9 | LN42: 15.95 | LO42: =LN42+0.05 -> 16 | LP42: 16.05 | LQ42: 16.1 | LR42: 16.15 | LS42: 16.2 | LT42: 16.25 | LU42: 16.3 | LV42: 16.35 | LW42: 16.4 | LX42: 16.45 | LY42: 16.5 | LZ42: 16.55 | MA42: 16.6 | MB42: 16.65 | MC42: 16.7 | MD42: 16.75 | ME42: 16.8 | MF42: 16.85 | MG42: 16.9 | MH42: 16.95 | MI42: 17 | MJ42: 17.05 | MK42: 17.1 | ML42: 17.15 | MM42: 17.2 | MN42: 17.25 | MO42: 17.3 | MP42: 17.35 | MQ42: 17.4 | MR42: 17.45 | MS42: 17.5 | MT42: 17.55 | MU42: 17.6 | MV42: 17.65 | MW42: 17.7 | MX42: 17.75 | MY42: 17.8 | MZ42: 17.85 | NA42: 17.9 | NB42: 17.95 | NC42: 18 | ND42: 18.05 | NE42: 18.1 | NF42: 18.15 | NG42: 18.2 | NH42: 18.25 | NI42: 18.3 | NJ42: 18.35 | NK42: 18.4 | NL42: 18.45 | NM42: 18.5 | NN42: 18.55 | NO42: 18.6
B43: x1 | C43: 0.5
B44: x2 | C44: 1
B45: x3 | C45: 5
B46: ="P(x<="&C43&" "&D41&")" -> P(x<=0.5 minutes) | C46: =_xlfn.EXPON.DIST(C43,1/$C$41,1) -> 0.2211992169
B47: ="P(x<="&C44&" "&D42&")" -> P(x<=1 ) | C47: 0.3934693403
B48: ="P(x>="&C45&" "&D43&")" -> P(x>=5 ) | C48: =1-_xlfn.EXPON.DIST(C45,1/$C$41,1) -> 0.08208499862

Sheet P&E
A1: Poisson | B1: POISSON.DIST
A2: Discrete Random Variable
A3: # of occurrences in an interval (time or space)
A4: f(x) = (μxe-μ)/x! | B4: Height & Probability
A5: f(x) | B5: probability of x occurrences in an interval
A6: X = Random Discrete Variable | B6: # of occurrences in interval
A7: μ = Expected Value = Mean = | B7: Expected Value of Mean = # of occurrences in an interval
A8: x values = 0,1,2,3,…
A9: without upper limit (but the probability is nil in the upper numbers)
A10: Mean = Variance
A12: Exponential | B12: EXPON.DIST
A13: Continuous Random Variable
A14: Probability of length of interval (time or space) between occurrences
A15: f(x) = (1/μ)*e-x/μ For x >=0 | B15: Density Function to determine Height of curve, not probability
A16: P(x<=x0) = 1- e-x0/μ | B16: Used to calculate cumulative
A17: P(x) | B17: Probability of length of interval (time or space)
A18: X = Continuous Random Variable | B18: Length of interval between two occurrences (time or space - minutes/hours or feet/miles)
A19: μ = Mean = Expected Value = | B19: Expected Value of Mean = time between occurrences (1 arrival and next or beg and end)
A20: x values > = 0
A21: without upper limit (but the probability is nil in the upper numbers)
A22: Mean = Standard Deviation
A24: If Poisson Distribution describes # of occurrences in an internal, then the Exponential Distribution describes length of interval (probability of) | J24: Falses are disimilar at about 15th digit
H25: =H26=H28 -> TRUE | I25: TRUE | J25: FALSE | K25: TRUE | L25: TRUE | M25: TRUE | N25: TRUE | O25: TRUE | P25: TRUE | Q25: TRUE | R25: TRUE | S25: TRUE | T25: TRUE | U25: FALSE | V25: FALSE | W25: TRUE | X25: FALSE | Y25: TRUE | Z25: TRUE | AA25: FALSE | AB25: FALSE | AC25: FALSE | AD25: FALSE | AE25: FALSE | AF25: TRUE | AG25: TRUE | AH25: FALSE | AI25: TRUE | AJ25: TRUE | AK25: TRUE | AL25: FALSE | AM25: FALSE | AN25: =AN26=AN28 -> FALSE | AO25: TRUE | AP25: TRUE | AQ25: FALSE | AR25: FALSE | AS25: FALSE | AT25: TRUE | AU25: TRUE | AV25: FALSE | AW25: FALSE | AX25: TRUE | AY25: FALSE | AZ25: TRUE | BA25: FALSE | BB25: FALSE | BC25: TRUE | BD25: FALSE | BE25: FALSE | BF25: FALSE | BG25: TRUE | BH25: TRUE | BI25: TRUE | BJ25: TRUE | BK25: FALSE | BL25: FALSE | BM25: FALSE
A26: Therefore: | G26: check | H26: =($B$31^H29*EXP(1)^-$B$31)/FACT(H29) -> 2.061153622e-09 | I26: =($B$31^I29*EXP(1)^-$B$31)/FACT(I29) -> 4.122307245e-08 | J26: 4.122307245e-07 | K26: 2.74820483e-06 | L26: 1.374102415e-05 | M26: 5.49640966e-05 | N26: 0.0001832136553 | O26: 0.0005234675867 | P26: 0.001308668967 | Q26: 0.002908153259 | R26: 0.005816306518 | S26: 0.01057510276 | T26: 0.01762517127 | U26: 0.0271156481 | V26: 0.03873664015 | W26: 0.05164885353 | X26: 0.06456106691 | Y26: 0.07595419637 | Z26: 0.08439355152 | AA26: 0.08883531739 | AB26: 0.08883531739 | AC26: 0.08460506418 | AD26: 0.07691369471 | AE26: 0.06688147366 | AF26: 0.05573456139 | AG26: 0.04458764911 | AH26: 0.03429819162 | AI26: 0.02540606787 | AJ26: 0.01814719133 | AK26: 0.01251530437 | AL26: 0.008343536246 | AM26: 0.00538292661 | AN26: 0.003364329131 | AO26: 0.002038987352 | AP26: 0.001199404325 | AQ26: 0.0006853738999 | AR26: 0.0003807632777 | AS26: 0.000205817988 | AT26: 0.0001083252568 | AU26: 5.555141376e-05 | AV26: 2.777570688e-05 | AW26: 1.354912531e-05 | AX26: 6.451964432e-06 | AY26: 3.000913689e-06 | AZ26: 1.364051677e-06 | BA26: 6.062451897e-07 | BB26: 2.635848651e-07 | BC26: 1.121637724e-07 | BD26: 4.673490516e-08 | BE26: 1.907547149e-08 | BF26: 7.630188597e-09 | BG26: 2.992230823e-09 | BH26: 1.150858009e-09 | BI26: 4.34286041e-10 | BJ26: 1.608466819e-10 | BK26: 5.848970249e-11 | BL26: 2.088917946e-11 | BM26: 7.329536653e-12
A28: If we know Poisson like: | G28: f(x) | H28: =_xlfn.POISSON.DIST(H29,$B$31,0) -> 2.061153622e-09 | I28: =_xlfn.POISSON.DIST(I29,$B$31,0) -> 4.122307245e-08 | J28: =_xlfn.POISSON.DIST(J29,$B$31,0) -> 4.122307245e-07 | K28: 2.74820483e-06 | L28: 1.374102415e-05 | M28: 5.49640966e-05 | N28: 0.0001832136553 | O28: 0.0005234675867 | P28: 0.001308668967 | Q28: 0.002908153259 | R28: 0.005816306518 | S28: 0.01057510276 | T28: 0.01762517127 | U28: 0.0271156481 | V28: 0.03873664015 | W28: 0.05164885353 | X28: 0.06456106691 | Y28: 0.07595419637 | Z28: 0.08439355152 | AA28: 0.08883531739 | AB28: 0.08883531739 | AC28: 0.08460506418 | AD28: 0.07691369471 | AE28: 0.06688147366 | AF28: 0.05573456139 | AG28: 0.04458764911 | AH28: 0.03429819162 | AI28: 0.02540606787 | AJ28: 0.01814719133 | AK28: 0.01251530437 | AL28: 0.008343536246 | AM28: 0.00538292661 | AN28: 0.003364329131 | AO28: 0.002038987352 | AP28: 0.001199404325 | AQ28: 0.0006853738999 | AR28: 0.0003807632777 | AS28: 0.000205817988 | AT28: 0.0001083252568 | AU28: 5.555141376e-05 | AV28: 2.777570688e-05 | AW28: 1.354912531e-05 | AX28: 6.451964432e-06 | AY28: 3.000913689e-06 | AZ28: 1.364051677e-06 | BA28: 6.062451897e-07 | BB28: 2.635848651e-07 | BC28: 1.121637724e-07 | BD28: 4.673490516e-08 | BE28: 1.907547149e-08 | BF28: 7.630188597e-09 | BG28: 2.992230823e-09 | BH28: 1.150858009e-09 | BI28: 4.34286041e-10 | BJ28: 1.608466819e-10 | BK28: 5.848970249e-11 | BL28: 2.088917946e-11 | BM28: 7.329536653e-12
G29: x | H29: 0 | I29: 1 | J29: 2 | K29: 3 | L29: 4 | M29: 5 | N29: 6 | O29: 7 | P29: 8 | Q29: 9 | R29: 10 | S29: 11 | T29: 12 | U29: 13 | V29: 14 | W29: 15 | X29: 16 | Y29: 17 | Z29: 18 | AA29: 19 | AB29: 20 | AC29: 21 | AD29: 22 | AE29: 23 | AF29: 24 | AG29: 25 | AH29: 26 | AI29: 27 | AJ29: 28 | AK29: 29 | AL29: 30 | AM29: 31 | AN29: 32 | AO29: 33 | AP29: 34 | AQ29: 35 | AR29: 36 | AS29: 37 | AT29: 38 | AU29: 39 | AV29: 40 | AW29: 41 | AX29: 42 | AY29: 43 | AZ29: 44 | BA29: 45 | BB29: 46 | BC29: 47 | BD29: 48 | BE29: 49 | BF29: 50 | BG29: 51 | BH29: 52 | BI29: 53 | BJ29: 54 | BK29: 55 | BL29: 56 | BM29: 57
A30: f(x) = (μxe-μ)/x! | B30: Height & Probability | G30: =A36&" = "&ROUND(B36,4) -> P(x<=25) = 0 | H30: =IF(H29<=$B$35,H28,"") -> 2.061153622e-09 | I30: =IF(I29<=$B$35,I28,"") -> 4.122307245e-08 | J30: =IF(J29<=$B$35,J28,"") -> 4.122307245e-07 | K30: =IF(K29<=$B$35,K28,"") -> 2.74820483e-06 | L30: =IF(L29<=$B$35,L28,"") -> 1.374102415e-05 | M30: =IF(M29<=$B$35,M28,"") -> 5.49640966e-05 | N30: =IF(N29<=$B$35,N28,"") -> 0.0001832136553 | O30: =IF(O29<=$B$35,O28,"") -> 0.0005234675867 | P30: =IF(P29<=$B$35,P28,"") -> 0.001308668967 | Q30: =IF(Q29<=$B$35,Q28,"") -> 0.002908153259 | R30: =IF(R29<=$B$35,R28,"") -> 0.005816306518 | S30: =IF(S29<=$B$35,S28,"") -> 0.01057510276 | T30: =IF(T29<=$B$35,T28,"") -> 0.01762517127 | U30: =IF(U29<=$B$35,U28,"") -> 0.0271156481 | V30: =IF(V29<=$B$35,V28,"") -> 0.03873664015 | W30: =IF(W29<=$B$35,W28,"") -> 0.05164885353 | X30: =IF(X29<=$B$35,X28,"") -> 0.06456106691 | Y30: =IF(Y29<=$B$35,Y28,"") -> 0.07595419637 | Z30: =IF(Z29<=$B$35,Z28,"") -> 0.08439355152 | AA30: =IF(AA29<=$B$35,AA28,"") -> 0.08883531739 | AB30: =IF(AB29<=$B$35,AB28,"") -> 0.08883531739 | AC30: =IF(AC29<=$B$35,AC28,"") -> 0.08460506418 | AD30: =IF(AD29<=$B$35,AD28,"") -> 0.07691369471 | AE30: =IF(AE29<=$B$35,AE28,"") -> 0.06688147366 | AF30: =IF(AF29<=$B$35,AF28,"") -> 0.05573456139 | AG30: =IF(AG29<=$B$35,AG28,"") -> 0.04458764911 | AH30: =IF(AH29<=$B$35,AH28,"") ->  | AI30: =IF(AI29<=$B$35,AI28,"") ->  | AJ30: =IF(AJ29<=$B$35,AJ28,"") ->  | AK30: =IF(AK29<=$B$35,AK28,"") ->  | AL30: =IF(AL29<=$B$35,AL28,"") ->  | AM30: =IF(AM29<=$B$35,AM28,"") ->  | AN30: =IF(AN29<=$B$35,AN28,"") ->  | AO30: =IF(AO29<=$B$35,AO28,"") ->  | AP30: =IF(AP29<=$B$35,AP28,"") ->  | AQ30: =IF(AQ29<=$B$35,AQ28,"") ->  | AR30: =IF(AR29<=$B$35,AR28,"") ->  | AS30: =IF(AS29<=$B$35,AS28,"") ->  | AT30: =IF(AT29<=$B$35,AT28,"") ->  | AU30: =IF(AU29<=$B$35,AU28,"") ->  | AV30: =IF(AV29<=$B$35,AV28,"") ->  | AW30: =IF(AW29<=$B$35,AW28,"") ->  | AX30: =IF(AX29<=$B$35,AX28,"") ->  | AY30: =IF(AY29<=$B$35,AY28,"") ->  | AZ30: =IF(AZ29<=$B$35,AZ28,"") ->  | BA30: =IF(BA29<=$B$35,BA28,"") ->  | BB30: =IF(BB29<=$B$35,BB28,"") ->  | BC30: =IF(BC29<=$B$35,BC28,"") ->  | BD30: =IF(BD29<=$B$35,BD28,"") ->  | BE30: =IF(BE29<=$B$35,BE28,"") ->  | BF30: =IF(BF29<=$B$35,BF28,"") ->  | BG30: =IF(BG29<=$B$35,BG28,"") ->  | BH30: =IF(BH29<=$B$35,BH28,"") ->  | BI30: =IF(BI29<=$B$35,BI28,"") ->  | BJ30: =IF(BJ29<=$B$35,BJ28,"") ->  | BK30: =IF(BK29<=$B$35,BK28,"") ->  | BL30: =IF(BL29<=$B$35,BL28,"") ->  | BM30: =IF(BM29<=$B$35,BM28,"") -> 
A31: μ = Expected Value = mean | B31: 20 | C31: visitors | D31: ="per "&B32&" "&C32 -> per 1 hour | E31: # occurrences in interval
A32: Time interval | B32: 1 | C32: hour
A33: ="x = # "&C31&" "&D31&" to web site" -> x = # visitors per 1 hour to web site
A34: ="f(x) = ("&B31&"^x * "&ROUND(EXP(1),4)&"^-"&B31&") / X!" -> f(x) = (20^x * 2.7183^-20) / X!
A35: x | B35: 25 | D35: Check
A36: ="P(x<="&B35&")" -> P(x<=25) | D36: =SUMIF($H$29:$BM$29,"<="&B35,$H$28:$BM$28) -> 0.8878150273 | E36: =D36=B36 -> FALSE
A38: Then we can calculate mew for Exponetial:
A39: μ = Expected Value = average time between arrivals
A40: μ = Expected Value = mean = | C40: hours | D40: Time between arrivals
C41: minutes
A42: x = time between arrivals at store
A44: And then Exponential Function:
H45: =H46=H49 -> TRUE | I45: =I46=I49 -> TRUE | J45: =J46=J49 -> TRUE | K45: TRUE | L45: TRUE | M45: TRUE | N45: TRUE | O45: TRUE | P45: TRUE | Q45: TRUE | R45: TRUE | S45: TRUE | T45: TRUE | U45: TRUE | V45: TRUE | W45: TRUE | X45: TRUE | Y45: TRUE | Z45: TRUE | AA45: TRUE | AB45: TRUE | AC45: TRUE | AD45: TRUE | AE45: TRUE | AF45: TRUE | AG45: FALSE | AH45: TRUE | AI45: TRUE | AJ45: TRUE | AK45: TRUE | AL45: TRUE | AM45: TRUE | AN45: TRUE | AO45: TRUE | AP45: TRUE | AQ45: TRUE | AR45: TRUE | AS45: TRUE | AT45: TRUE | AU45: TRUE | AV45: FALSE | AW45: TRUE | AX45: TRUE | AY45: FALSE | AZ45: TRUE | BA45: TRUE | BB45: TRUE | BC45: TRUE | BD45: TRUE | BE45: TRUE | BF45: FALSE | BG45: TRUE | BH45: TRUE | BI45: FALSE | BJ45: TRUE | BK45: TRUE | BL45: TRUE | BM45: TRUE | BN45: FALSE | BO45: TRUE | BP45: TRUE
A46: f(x) = 1/μ*e-x/μ For x >=0 | B46: Density Function to determine Height of curve, not probability | G46: check | H46: =1/$H$48*EXP(1)^-(H50/$H$48) -> 0.3333333333 | I46: =1/$H$48*EXP(1)^-(I50/$H$48) -> 0.282160575 | J46: =1/$H$48*EXP(1)^-(J50/$H$48) -> 0.2388437702 | K46: =1/$H$48*EXP(1)^-(K50/$H$48) -> 0.2021768866 | L46: =1/$H$48*EXP(1)^-(L50/$H$48) -> 0.1711390397 | M46: =1/$H$48*EXP(1)^-(M50/$H$48) -> 0.1448660695 | N46: =1/$H$48*EXP(1)^-(N50/$H$48) -> 0.1226264804 | O46: =1/$H$48*EXP(1)^-(O50/$H$48) -> 0.1038010746 | P46: =1/$H$48*EXP(1)^-(P50/$H$48) -> 0.08786571271 | Q46: =1/$H$48*EXP(1)^-(Q50/$H$48) -> 0.07437672005 | R46: =1/$H$48*EXP(1)^-(R50/$H$48) -> 0.06295853428 | S46: =1/$H$48*EXP(1)^-(S50/$H$48) -> 0.05329324869 | T46: =1/$H$48*EXP(1)^-(T50/$H$48) -> 0.04511176108 | U46: =1/$H$48*EXP(1)^-(U50/$H$48) -> 0.03818628133 | V46: =1/$H$48*EXP(1)^-(V50/$H$48) -> 0.03232398929 | W46: =1/$H$48*EXP(1)^-(W50/$H$48) -> 0.02736166621 | X46: =1/$H$48*EXP(1)^-(X50/$H$48) -> 0.02316115041 | Y46: =1/$H$48*EXP(1)^-(Y50/$H$48) -> 0.01960549055 | Z46: =1/$H$48*EXP(1)^-(Z50/$H$48) -> 0.01659568946 | AA46: =1/$H$48*EXP(1)^-(AA50/$H$48) -> 0.01404794784 | AB46: =1/$H$48*EXP(1)^-(AB50/$H$48) -> 0.01189133112 | AC46: =1/$H$48*EXP(1)^-(AC50/$H$48) -> 0.01006579447 | AD46: =1/$H$48*EXP(1)^-(AD50/$H$48) -> 0.008520511069 | AE46: =1/$H$48*EXP(1)^-(AE50/$H$48) -> 0.007212456906 | AF46: =1/$H$48*EXP(1)^-(AF50/$H$48) -> 0.006105212963 | AG46: =1/$H$48*EXP(1)^-(AG50/$H$48) -> 0.0051679512 | AH46: =1/$H$48*EXP(1)^-(AH50/$H$48) -> 0.004374576246 | AI46: =1/$H$48*EXP(1)^-(AI50/$H$48) -> 0.003702998846 | AJ46: =1/$H$48*EXP(1)^-(AJ50/$H$48) -> 0.00313452085 | AK46: =1/$H$48*EXP(1)^-(AK50/$H$48) -> 0.002653314616 | AL46: =1/$H$48*EXP(1)^-(AL50/$H$48) -> 0.002245982333 | AM46: =1/$H$48*EXP(1)^-(AM50/$H$48) -> 0.001901182999 | AN46: =1/$H$48*EXP(1)^-(AN50/$H$48) -> 0.001609316665 | AO46: =1/$H$48*EXP(1)^-(AO50/$H$48) -> 0.001362257146 | AP46: =1/$H$48*EXP(1)^-(AP50/$H$48) -> 0.001153125779 | AQ46: =1/$H$48*EXP(1)^-(AQ50/$H$48) -> 0.0009760998983 | AR46: =1/$H$48*EXP(1)^-(AR50/$H$48) -> 0.0008262507256 | AS46: =1/$H$48*EXP(1)^-(AS50/$H$48) -> 0.0006994061394 | AT46: =1/$H$48*EXP(1)^-(AT50/$H$48) -> 0.0005920345152 | AU46: =1/$H$48*EXP(1)^-(AU50/$H$48) -> 0.0005011463977 | AV46: =1/$H$48*EXP(1)^-(AV50/$H$48) -> 0.0004242112671 | AW46: =1/$H$48*EXP(1)^-(AW50/$H$48) -> 0.0003590870851 | AX46: =1/$H$48*EXP(1)^-(AX50/$H$48) -> 0.0003039606552 | AY46: =1/$H$48*EXP(1)^-(AY50/$H$48) -> 0.0002572971397 | AZ46: =1/$H$48*EXP(1)^-(AZ50/$H$48) -> 0.0002177973266 | BA46: =1/$H$48*EXP(1)^-(BA50/$H$48) -> 0.0001843614567 | BB46: =1/$H$48*EXP(1)^-(BB50/$H$48) -> 0.0001560586039 | BC46: =1/$H$48*EXP(1)^-(BC50/$H$48) -> 0.0001321007562 | BD46: =1/$H$48*EXP(1)^-(BD50/$H$48) -> 0.000111820876 | BE46: =1/$H$48*EXP(1)^-(BE50/$H$48) -> 9.465432797e-05 | BF46: =1/$H$48*EXP(1)^-(BF50/$H$48) -> 8.012315881e-05 | BG46: =1/$H$48*EXP(1)^-(BG50/$H$48) -> 6.782278967e-05 | BH46: =1/$H$48*EXP(1)^-(BH50/$H$48) -> 5.741075199e-05 | BI46: =1/$H$48*EXP(1)^-(BI50/$H$48) -> 4.859715237e-05 | BJ46: =1/$H$48*EXP(1)^-(BJ50/$H$48) -> 4.113660136e-05 | BK46: =1/$H$48*EXP(1)^-(BK50/$H$48) -> 3.482138128e-05 | BL46: =1/$H$48*EXP(1)^-(BL50/$H$48) -> 2.947566289e-05 | BM46: =1/$H$48*EXP(1)^-(BM50/$H$48) -> 2.495060996e-05 | BN46: =1/$H$48*EXP(1)^-(BN50/$H$48) -> 2.112023536e-05 | BO46: =1/$H$48*EXP(1)^-(BO50/$H$48) -> 1.787789326e-05 | BP46: =1/$H$48*EXP(1)^-(BP50/$H$48) -> 1.513330992e-05
A47: P(x<=x0) = 1- e-x0/μ | B47: Used to calculate cumulative | G47: mean | H47: =B32/B31 -> 0.05 | I47: hours
A48: ="f(x) = 1/"&H47&" * "&ROUND(EXP(1),4)&"^-(x / "&H47&") = " -> f(x) = 1/0.05 * 2.7183^-(x / 0.05) = | G48: mean | H48: =B32/B31*60 -> 3 | I48: minutes
A49: =" = "&1/H47&" *"&ROUND(EXP(1),4)&"^-"&1/H47&"x" -> = 20 *2.7183^-20x | G49: f(x) | H49: =_xlfn.EXPON.DIST(H50,1/$H$48,0) -> 0.3333333333 | I49: =_xlfn.EXPON.DIST(I50,1/$H$48,0) -> 0.282160575 | J49: =_xlfn.EXPON.DIST(J50,1/$H$48,0) -> 0.2388437702 | K49: =_xlfn.EXPON.DIST(K50,1/$H$48,0) -> 0.2021768866 | L49: =_xlfn.EXPON.DIST(L50,1/$H$48,0) -> 0.1711390397 | M49: =_xlfn.EXPON.DIST(M50,1/$H$48,0) -> 0.1448660695 | N49: =_xlfn.EXPON.DIST(N50,1/$H$48,0) -> 0.1226264804 | O49: =_xlfn.EXPON.DIST(O50,1/$H$48,0) -> 0.1038010746 | P49: =_xlfn.EXPON.DIST(P50,1/$H$48,0) -> 0.08786571271 | Q49: =_xlfn.EXPON.DIST(Q50,1/$H$48,0) -> 0.07437672005 | R49: =_xlfn.EXPON.DIST(R50,1/$H$48,0) -> 0.06295853428 | S49: =_xlfn.EXPON.DIST(S50,1/$H$48,0) -> 0.05329324869 | T49: =_xlfn.EXPON.DIST(T50,1/$H$48,0) -> 0.04511176108 | U49: =_xlfn.EXPON.DIST(U50,1/$H$48,0) -> 0.03818628133 | V49: =_xlfn.EXPON.DIST(V50,1/$H$48,0) -> 0.03232398929 | W49: =_xlfn.EXPON.DIST(W50,1/$H$48,0) -> 0.02736166621 | X49: =_xlfn.EXPON.DIST(X50,1/$H$48,0) -> 0.02316115041 | Y49: =_xlfn.EXPON.DIST(Y50,1/$H$48,0) -> 0.01960549055 | Z49: =_xlfn.EXPON.DIST(Z50,1/$H$48,0) -> 0.01659568946 | AA49: =_xlfn.EXPON.DIST(AA50,1/$H$48,0) -> 0.01404794784 | AB49: =_xlfn.EXPON.DIST(AB50,1/$H$48,0) -> 0.01189133112 | AC49: =_xlfn.EXPON.DIST(AC50,1/$H$48,0) -> 0.01006579447 | AD49: =_xlfn.EXPON.DIST(AD50,1/$H$48,0) -> 0.008520511069 | AE49: =_xlfn.EXPON.DIST(AE50,1/$H$48,0) -> 0.007212456906 | AF49: =_xlfn.EXPON.DIST(AF50,1/$H$48,0) -> 0.006105212963 | AG49: =_xlfn.EXPON.DIST(AG50,1/$H$48,0) -> 0.0051679512 | AH49: =_xlfn.EXPON.DIST(AH50,1/$H$48,0) -> 0.004374576246 | AI49: =_xlfn.EXPON.DIST(AI50,1/$H$48,0) -> 0.003702998846 | AJ49: =_xlfn.EXPON.DIST(AJ50,1/$H$48,0) -> 0.00313452085 | AK49: =_xlfn.EXPON.DIST(AK50,1/$H$48,0) -> 0.002653314616 | AL49: =_xlfn.EXPON.DIST(AL50,1/$H$48,0) -> 0.002245982333 | AM49: =_xlfn.EXPON.DIST(AM50,1/$H$48,0) -> 0.001901182999 | AN49: =_xlfn.EXPON.DIST(AN50,1/$H$48,0) -> 0.001609316665 | AO49: =_xlfn.EXPON.DIST(AO50,1/$H$48,0) -> 0.001362257146 | AP49: =_xlfn.EXPON.DIST(AP50,1/$H$48,0) -> 0.001153125779 | AQ49: =_xlfn.EXPON.DIST(AQ50,1/$H$48,0) -> 0.0009760998983 | AR49: =_xlfn.EXPON.DIST(AR50,1/$H$48,0) -> 0.0008262507256 | AS49: =_xlfn.EXPON.DIST(AS50,1/$H$48,0) -> 0.0006994061394 | AT49: =_xlfn.EXPON.DIST(AT50,1/$H$48,0) -> 0.0005920345152 | AU49: =_xlfn.EXPON.DIST(AU50,1/$H$48,0) -> 0.0005011463977 | AV49: =_xlfn.EXPON.DIST(AV50,1/$H$48,0) -> 0.0004242112671 | AW49: =_xlfn.EXPON.DIST(AW50,1/$H$48,0) -> 0.0003590870851 | AX49: =_xlfn.EXPON.DIST(AX50,1/$H$48,0) -> 0.0003039606552 | AY49: =_xlfn.EXPON.DIST(AY50,1/$H$48,0) -> 0.0002572971397 | AZ49: =_xlfn.EXPON.DIST(AZ50,1/$H$48,0) -> 0.0002177973266 | BA49: =_xlfn.EXPON.DIST(BA50,1/$H$48,0) -> 0.0001843614567 | BB49: =_xlfn.EXPON.DIST(BB50,1/$H$48,0) -> 0.0001560586039 | BC49: =_xlfn.EXPON.DIST(BC50,1/$H$48,0) -> 0.0001321007562 | BD49: =_xlfn.EXPON.DIST(BD50,1/$H$48,0) -> 0.000111820876 | BE49: =_xlfn.EXPON.DIST(BE50,1/$H$48,0) -> 9.465432797e-05 | BF49: =_xlfn.EXPON.DIST(BF50,1/$H$48,0) -> 8.012315881e-05 | BG49: =_xlfn.EXPON.DIST(BG50,1/$H$48,0) -> 6.782278967e-05 | BH49: =_xlfn.EXPON.DIST(BH50,1/$H$48,0) -> 5.741075199e-05 | BI49: =_xlfn.EXPON.DIST(BI50,1/$H$48,0) -> 4.859715237e-05 | BJ49: =_xlfn.EXPON.DIST(BJ50,1/$H$48,0) -> 4.113660136e-05 | BK49: =_xlfn.EXPON.DIST(BK50,1/$H$48,0) -> 3.482138128e-05 | BL49: =_xlfn.EXPON.DIST(BL50,1/$H$48,0) -> 2.947566289e-05 | BM49: =_xlfn.EXPON.DIST(BM50,1/$H$48,0) -> 2.495060996e-05 | BN49: =_xlfn.EXPON.DIST(BN50,1/$H$48,0) -> 2.112023536e-05 | BO49: =_xlfn.EXPON.DIST(BO50,1/$H$48,0) -> 1.787789326e-05 | BP49: =_xlfn.EXPON.DIST(BP50,1/$H$48,0) -> 1.513330992e-05
A50: x | B50: 5 | D50: check | G50: x | H50: 0 | I50: =+H50+0.5 -> 0.5 | J50: 1 | K50: =+J50+0.5 -> 1.5 | L50: 2 | M50: =+L50+0.5 -> 2.5 | N50: 3 | O50: =+N50+0.5 -> 3.5 | P50: 4 | Q50: =+P50+0.5 -> 4.5 | R50: 5 | S50: =+R50+0.5 -> 5.5 | T50: 6 | U50: =+T50+0.5 -> 6.5 | V50: 7 | W50: =+V50+0.5 -> 7.5 | X50: 8 | Y50: =+X50+0.5 -> 8.5 | Z50: 9 | AA50: =+Z50+0.5 -> 9.5 | AB50: 10 | AC50: =+AB50+0.5 -> 10.5 | AD50: 11 | AE50: =+AD50+0.5 -> 11.5 | AF50: 12 | AG50: =+AF50+0.5 -> 12.5 | AH50: 13 | AI50: =+AH50+0.5 -> 13.5 | AJ50: 14 | AK50: =+AJ50+0.5 -> 14.5 | AL50: 15 | AM50: =+AL50+0.5 -> 15.5 | AN50: 16 | AO50: =+AN50+0.5 -> 16.5 | AP50: 17 | AQ50: =+AP50+0.5 -> 17.5 | AR50: 18 | AS50: =+AR50+0.5 -> 18.5 | AT50: 19 | AU50: =+AT50+0.5 -> 19.5 | AV50: 20 | AW50: =+AV50+0.5 -> 20.5 | AX50: 21 | AY50: =+AX50+0.5 -> 21.5 | AZ50: 22 | BA50: =+AZ50+0.5 -> 22.5 | BB50: 23 | BC50: =+BB50+0.5 -> 23.5 | BD50: 24 | BE50: =+BD50+0.5 -> 24.5 | BF50: 25 | BG50: =+BF50+0.5 -> 25.5 | BH50: 26 | BI50: =+BH50+0.5 -> 26.5 | BJ50: 27 | BK50: =+BJ50+0.5 -> 27.5 | BL50: 28 | BM50: =+BL50+0.5 -> 28.5 | BN50: 29 | BO50: =+BN50+0.5 -> 29.5 | BP50: 30
A51: ="P(x<="&B50&")" -> P(x<=5) | D51: =1-EXP(1)^-(B50/H48) -> 0.8111243972 | E51: =D51=B51 -> FALSE | G51: =A51&" = "&ROUND(B51,4) -> P(x<=5) = 0 | H51: =IF(H50<=$B$50,H49,"") -> 0.3333333333 | I51: =IF(I50<=$B$50,I49,"") -> 0.282160575 | J51: =IF(J50<=$B$50,J49,"") -> 0.2388437702 | K51: =IF(K50<=$B$50,K49,"") -> 0.2021768866 | L51: =IF(L50<=$B$50,L49,"") -> 0.1711390397 | M51: =IF(M50<=$B$50,M49,"") -> 0.1448660695 | N51: =IF(N50<=$B$50,N49,"") -> 0.1226264804 | O51: =IF(O50<=$B$50,O49,"") -> 0.1038010746 | P51: =IF(P50<=$B$50,P49,"") -> 0.08786571271 | Q51: =IF(Q50<=$B$50,Q49,"") -> 0.07437672005 | R51: =IF(R50<=$B$50,R49,"") -> 0.06295853428 | S51: =IF(S50<=$B$50,S49,"") ->  | T51: =IF(T50<=$B$50,T49,"") ->  | U51: =IF(U50<=$B$50,U49,"") ->  | V51: =IF(V50<=$B$50,V49,"") ->  | W51: =IF(W50<=$B$50,W49,"") ->  | X51: =IF(X50<=$B$50,X49,"") ->  | Y51: =IF(Y50<=$B$50,Y49,"") ->  | Z51: =IF(Z50<=$B$50,Z49,"") ->  | AA51: =IF(AA50<=$B$50,AA49,"") ->  | AB51: =IF(AB50<=$B$50,AB49,"") ->  | AC51: =IF(AC50<=$B$50,AC49,"") ->  | AD51: =IF(AD50<=$B$50,AD49,"") ->  | AE51: =IF(AE50<=$B$50,AE49,"") ->  | AF51: =IF(AF50<=$B$50,AF49,"") ->  | AG51: =IF(AG50<=$B$50,AG49,"") ->  | AH51: =IF(AH50<=$B$50,AH49,"") ->  | AI51: =IF(AI50<=$B$50,AI49,"") ->  | AJ51: =IF(AJ50<=$B$50,AJ49,"") ->  | AK51: =IF(AK50<=$B$50,AK49,"") ->  | AL51: =IF(AL50<=$B$50,AL49,"") ->  | AM51: =IF(AM50<=$B$50,AM49,"") ->  | AN51: =IF(AN50<=$B$50,AN49,"") ->  | AO51: =IF(AO50<=$B$50,AO49,"") ->  | AP51: =IF(AP50<=$B$50,AP49,"") ->  | AQ51: =IF(AQ50<=$B$50,AQ49,"") ->  | AR51: =IF(AR50<=$B$50,AR49,"") ->  | AS51: =IF(AS50<=$B$50,AS49,"") ->  | AT51: =IF(AT50<=$B$50,AT49,"") ->  | AU51: =IF(AU50<=$B$50,AU49,"") ->  | AV51: =IF(AV50<=$B$50,AV49,"") ->  | AW51: =IF(AW50<=$B$50,AW49,"") ->  | AX51: =IF(AX50<=$B$50,AX49,"") ->  | AY51: =IF(AY50<=$B$50,AY49,"") ->  | AZ51: =IF(AZ50<=$B$50,AZ49,"") ->  | BA51: =IF(BA50<=$B$50,BA49,"") ->  | BB51: =IF(BB50<=$B$50,BB49,"") ->  | BC51: =IF(BC50<=$B$50,BC49,"") ->  | BD51: =IF(BD50<=$B$50,BD49,"") ->  | BE51: =IF(BE50<=$B$50,BE49,"") ->  | BF51: =IF(BF50<=$B$50,BF49,"") ->  | BG51: =IF(BG50<=$B$50,BG49,"") ->  | BH51: =IF(BH50<=$B$50,BH49,"") ->  | BI51: =IF(BI50<=$B$50,BI49,"") ->  | BJ51: =IF(BJ50<=$B$50,BJ49,"") ->  | BK51: =IF(BK50<=$B$50,BK49,"") ->  | BL51: =IF(BL50<=$B$50,BL49,"") ->  | BM51: =IF(BM50<=$B$50,BM49,"") ->  | BN51: =IF(BN50<=$B$50,BN49,"") ->  | BO51: =IF(BO50<=$B$50,BO49,"") ->  | BP51: =IF(BP50<=$B$50,BP49,"") -> 

Sheet P&E (an)
A1: Poisson | B1: POISSON.DIST
A2: Discrete Random Variable
A3: # of occurrences in an interval (time or space)
A4: f(x) = (μxe-μ)/x! | B4: Height & Probability
A5: f(x) | B5: probability of x occurrences in an interval
A6: X = Random Discrete Variable | B6: # of occurrences in interval
A7: μ = Expected Value = Mean = | B7: Expected Value of Mean = # of occurrences in an interval
A8: x values = 0,1,2,3,…
A9: without upper limit (but the probability is nil in the upper numbers)
A10: Mean = Variance
A12: Exponential | B12: EXPON.DIST
A13: Continuous Random Variable
A14: Probability of length of interval (time or space) between occurrences
A15: f(x) = (1/μ)*e-x/μ For x >=0 | B15: Density Function to determine Height of curve, not probability
A16: P(x<=x0) = 1- e-x0/μ | B16: Used to calculate cumulative
A17: P(x) | B17: Probability of length of interval (time or space)
A18: X = Continuous Random Variable | B18: Length of interval between two occurrences (time or space - minutes/hours or feet/miles)
A19: μ = Mean = Expected Value = | B19: Expected Value of Mean = time between occurrences (1 arrival and next or beg and end)
A20: x values > = 0
A21: without upper limit (but the probability is nil in the upper numbers)
A22: Mean = Standard Deviation
A24: If Poisson Distribution describes # of occurrences in an internal, then the Exponential Distribution describes length of interval (probability of) | J24: Falses are disimilar at about 15th digit
H25: =H26=H28 -> TRUE | I25: TRUE | J25: FALSE | K25: TRUE | L25: TRUE | M25: TRUE | N25: TRUE | O25: TRUE | P25: TRUE | Q25: TRUE | R25: TRUE | S25: TRUE | T25: TRUE | U25: FALSE | V25: FALSE | W25: TRUE | X25: FALSE | Y25: TRUE | Z25: TRUE | AA25: FALSE | AB25: FALSE | AC25: FALSE | AD25: FALSE | AE25: FALSE | AF25: TRUE | AG25: TRUE | AH25: FALSE | AI25: TRUE | AJ25: TRUE | AK25: TRUE | AL25: FALSE | AM25: FALSE | AN25: FALSE | AO25: TRUE | AP25: TRUE | AQ25: FALSE | AR25: FALSE | AS25: FALSE | AT25: TRUE | AU25: TRUE | AV25: FALSE | AW25: FALSE | AX25: TRUE | AY25: FALSE | AZ25: TRUE | BA25: FALSE | BB25: FALSE | BC25: TRUE | BD25: FALSE | BE25: FALSE | BF25: FALSE | BG25: TRUE | BH25: TRUE | BI25: TRUE | BJ25: TRUE | BK25: FALSE | BL25: FALSE | BM25: FALSE
A26: Therefore: | G26: check | H26: =($B$31^H29*EXP(1)^-$B$31)/FACT(H29) -> 2.061153622e-09 | I26: =($B$31^I29*EXP(1)^-$B$31)/FACT(I29) -> 4.122307245e-08 | J26: 4.122307245e-07 | K26: 2.74820483e-06 | L26: 1.374102415e-05 | M26: 5.49640966e-05 | N26: 0.0001832136553 | O26: 0.0005234675867 | P26: 0.001308668967 | Q26: 0.002908153259 | R26: 0.005816306518 | S26: 0.01057510276 | T26: 0.01762517127 | U26: 0.0271156481 | V26: 0.03873664015 | W26: 0.05164885353 | X26: 0.06456106691 | Y26: 0.07595419637 | Z26: 0.08439355152 | AA26: 0.08883531739 | AB26: 0.08883531739 | AC26: 0.08460506418 | AD26: 0.07691369471 | AE26: 0.06688147366 | AF26: 0.05573456139 | AG26: 0.04458764911 | AH26: 0.03429819162 | AI26: 0.02540606787 | AJ26: 0.01814719133 | AK26: 0.01251530437 | AL26: 0.008343536246 | AM26: 0.00538292661 | AN26: 0.003364329131 | AO26: 0.002038987352 | AP26: 0.001199404325 | AQ26: 0.0006853738999 | AR26: 0.0003807632777 | AS26: 0.000205817988 | AT26: 0.0001083252568 | AU26: 5.555141376e-05 | AV26: 2.777570688e-05 | AW26: 1.354912531e-05 | AX26: 6.451964432e-06 | AY26: 3.000913689e-06 | AZ26: 1.364051677e-06 | BA26: 6.062451897e-07 | BB26: 2.635848651e-07 | BC26: 1.121637724e-07 | BD26: 4.673490516e-08 | BE26: 1.907547149e-08 | BF26: 7.630188597e-09 | BG26: 2.992230823e-09 | BH26: 1.150858009e-09 | BI26: 4.34286041e-10 | BJ26: 1.608466819e-10 | BK26: 5.848970249e-11 | BL26: 2.088917946e-11 | BM26: 7.329536653e-12
A28: If we know Poisson like: | G28: f(x) | H28: =_xlfn.POISSON.DIST(H29,$B$31,0) -> 2.061153622e-09 | I28: =_xlfn.POISSON.DIST(I29,$B$31,0) -> 4.122307245e-08 | J28: =_xlfn.POISSON.DIST(J29,$B$31,0) -> 4.122307245e-07 | K28: 2.74820483e-06 | L28: 1.374102415e-05 | M28: 5.49640966e-05 | N28: 0.0001832136553 | O28: 0.0005234675867 | P28: 0.001308668967 | Q28: 0.002908153259 | R28: 0.005816306518 | S28: 0.01057510276 | T28: 0.01762517127 | U28: 0.0271156481 | V28: 0.03873664015 | W28: 0.05164885353 | X28: 0.06456106691 | Y28: 0.07595419637 | Z28: 0.08439355152 | AA28: 0.08883531739 | AB28: 0.08883531739 | AC28: 0.08460506418 | AD28: 0.07691369471 | AE28: 0.06688147366 | AF28: 0.05573456139 | AG28: 0.04458764911 | AH28: 0.03429819162 | AI28: 0.02540606787 | AJ28: 0.01814719133 | AK28: 0.01251530437 | AL28: 0.008343536246 | AM28: 0.00538292661 | AN28: 0.003364329131 | AO28: 0.002038987352 | AP28: 0.001199404325 | AQ28: 0.0006853738999 | AR28: 0.0003807632777 | AS28: 0.000205817988 | AT28: 0.0001083252568 | AU28: 5.555141376e-05 | AV28: 2.777570688e-05 | AW28: 1.354912531e-05 | AX28: 6.451964432e-06 | AY28: 3.000913689e-06 | AZ28: 1.364051677e-06 | BA28: 6.062451897e-07 | BB28: 2.635848651e-07 | BC28: 1.121637724e-07 | BD28: 4.673490516e-08 | BE28: 1.907547149e-08 | BF28: 7.630188597e-09 | BG28: 2.992230823e-09 | BH28: 1.150858009e-09 | BI28: 4.34286041e-10 | BJ28: 1.608466819e-10 | BK28: 5.848970249e-11 | BL28: 2.088917946e-11 | BM28: 7.329536653e-12
G29: x | H29: 0 | I29: 1 | J29: 2 | K29: 3 | L29: 4 | M29: 5 | N29: 6 | O29: 7 | P29: 8 | Q29: 9 | R29: 10 | S29: 11 | T29: 12 | U29: 13 | V29: 14 | W29: 15 | X29: 16 | Y29: 17 | Z29: 18 | AA29: 19 | AB29: 20 | AC29: 21 | AD29: 22 | AE29: 23 | AF29: 24 | AG29: 25 | AH29: 26 | AI29: 27 | AJ29: 28 | AK29: 29 | AL29: 30 | AM29: 31 | AN29: 32 | AO29: 33 | AP29: 34 | AQ29: 35 | AR29: 36 | AS29: 37 | AT29: 38 | AU29: 39 | AV29: 40 | AW29: 41 | AX29: 42 | AY29: 43 | AZ29: 44 | BA29: 45 | BB29: 46 | BC29: 47 | BD29: 48 | BE29: 49 | BF29: 50 | BG29: 51 | BH29: 52 | BI29: 53 | BJ29: 54 | BK29: 55 | BL29: 56 | BM29: 57
A30: f(x) = (μxe-μ)/x! | B30: Height & Probability | G30: =A36&" = "&ROUND(B36,4) -> P(x<=25) = 0.8878 | H30: =IF(H29<=$B$35,H28,"") -> 2.061153622e-09 | I30: =IF(I29<=$B$35,I28,"") -> 4.122307245e-08 | J30: =IF(J29<=$B$35,J28,"") -> 4.122307245e-07 | K30: =IF(K29<=$B$35,K28,"") -> 2.74820483e-06 | L30: =IF(L29<=$B$35,L28,"") -> 1.374102415e-05 | M30: =IF(M29<=$B$35,M28,"") -> 5.49640966e-05 | N30: =IF(N29<=$B$35,N28,"") -> 0.0001832136553 | O30: =IF(O29<=$B$35,O28,"") -> 0.0005234675867 | P30: =IF(P29<=$B$35,P28,"") -> 0.001308668967 | Q30: =IF(Q29<=$B$35,Q28,"") -> 0.002908153259 | R30: =IF(R29<=$B$35,R28,"") -> 0.005816306518 | S30: =IF(S29<=$B$35,S28,"") -> 0.01057510276 | T30: =IF(T29<=$B$35,T28,"") -> 0.01762517127 | U30: =IF(U29<=$B$35,U28,"") -> 0.0271156481 | V30: =IF(V29<=$B$35,V28,"") -> 0.03873664015 | W30: =IF(W29<=$B$35,W28,"") -> 0.05164885353 | X30: =IF(X29<=$B$35,X28,"") -> 0.06456106691 | Y30: =IF(Y29<=$B$35,Y28,"") -> 0.07595419637 | Z30: =IF(Z29<=$B$35,Z28,"") -> 0.08439355152 | AA30: =IF(AA29<=$B$35,AA28,"") -> 0.08883531739 | AB30: =IF(AB29<=$B$35,AB28,"") -> 0.08883531739 | AC30: =IF(AC29<=$B$35,AC28,"") -> 0.08460506418 | AD30: =IF(AD29<=$B$35,AD28,"") -> 0.07691369471 | AE30: =IF(AE29<=$B$35,AE28,"") -> 0.06688147366 | AF30: =IF(AF29<=$B$35,AF28,"") -> 0.05573456139 | AG30: =IF(AG29<=$B$35,AG28,"") -> 0.04458764911 | AH30: =IF(AH29<=$B$35,AH28,"") ->  | AI30: =IF(AI29<=$B$35,AI28,"") ->  | AJ30: =IF(AJ29<=$B$35,AJ28,"") ->  | AK30: =IF(AK29<=$B$35,AK28,"") ->  | AL30: =IF(AL29<=$B$35,AL28,"") ->  | AM30: =IF(AM29<=$B$35,AM28,"") ->  | AN30: =IF(AN29<=$B$35,AN28,"") ->  | AO30: =IF(AO29<=$B$35,AO28,"") ->  | AP30: =IF(AP29<=$B$35,AP28,"") ->  | AQ30: =IF(AQ29<=$B$35,AQ28,"") ->  | AR30: =IF(AR29<=$B$35,AR28,"") ->  | AS30: =IF(AS29<=$B$35,AS28,"") ->  | AT30: =IF(AT29<=$B$35,AT28,"") ->  | AU30: =IF(AU29<=$B$35,AU28,"") ->  | AV30: =IF(AV29<=$B$35,AV28,"") ->  | AW30: =IF(AW29<=$B$35,AW28,"") ->  | AX30: =IF(AX29<=$B$35,AX28,"") ->  | AY30: =IF(AY29<=$B$35,AY28,"") ->  | AZ30: =IF(AZ29<=$B$35,AZ28,"") ->  | BA30: =IF(BA29<=$B$35,BA28,"") ->  | BB30: =IF(BB29<=$B$35,BB28,"") ->  | BC30: =IF(BC29<=$B$35,BC28,"") ->  | BD30: =IF(BD29<=$B$35,BD28,"") ->  | BE30: =IF(BE29<=$B$35,BE28,"") ->  | BF30: =IF(BF29<=$B$35,BF28,"") ->  | BG30: =IF(BG29<=$B$35,BG28,"") ->  | BH30: =IF(BH29<=$B$35,BH28,"") ->  | BI30: =IF(BI29<=$B$35,BI28,"") ->  | BJ30: =IF(BJ29<=$B$35,BJ28,"") ->  | BK30: =IF(BK29<=$B$35,BK28,"") ->  | BL30: =IF(BL29<=$B$35,BL28,"") ->  | BM30: =IF(BM29<=$B$35,BM28,"") -> 
A31: μ = Expected Value = mean | B31: 20 | C31: visitors | D31: ="per "&B32&" "&C32 -> per 1 hour | E31: # occurrences in interval
A32: Time interval | B32: 1 | C32: hour
A33: ="x = # "&C31&" "&D31&" to web site" -> x = # visitors per 1 hour to web site
A34: ="f(x) = ("&B31&"^x * "&ROUND(EXP(1),4)&"^-"&B31&") / X!" -> f(x) = (20^x * 2.7183^-20) / X!
A35: x | B35: 25 | D35: Check
A36: ="P(x<="&B35&")" -> P(x<=25) | B36: =_xlfn.POISSON.DIST(B35,B31,1) -> 0.8878150273 | D36: =SUMIF($H$29:$BM$29,"<="&B35,$H$28:$BM$28) -> 0.8878150273 | E36: =D36=B36 -> TRUE
A38: Then we can calculate mew for Exponetial:
A39: μ = Expected Value = average time between arrivals
A40: μ = Expected Value = mean = | B40: =B32/B31 -> 0.05 | C40: hours | D40: Time between arrivals
B41: =B40*60 -> 3 | C41: minutes
A42: x = time between arrivals at store
A44: And then Exponential Function:
H45: =H46=H49 -> TRUE | I45: =I46=I49 -> TRUE | J45: =J46=J49 -> TRUE | K45: TRUE | L45: TRUE | M45: TRUE | N45: TRUE | O45: TRUE | P45: TRUE | Q45: TRUE | R45: TRUE | S45: TRUE | T45: TRUE | U45: TRUE | V45: TRUE | W45: TRUE | X45: TRUE | Y45: TRUE | Z45: TRUE | AA45: TRUE | AB45: TRUE | AC45: TRUE | AD45: TRUE | AE45: TRUE | AF45: TRUE | AG45: FALSE | AH45: TRUE | AI45: TRUE | AJ45: TRUE | AK45: TRUE | AL45: TRUE | AM45: TRUE | AN45: TRUE | AO45: TRUE | AP45: TRUE | AQ45: TRUE | AR45: TRUE | AS45: TRUE | AT45: TRUE | AU45: TRUE | AV45: FALSE | AW45: TRUE | AX45: TRUE | AY45: FALSE | AZ45: TRUE | BA45: TRUE | BB45: TRUE | BC45: TRUE | BD45: TRUE | BE45: TRUE | BF45: FALSE | BG45: TRUE | BH45: TRUE | BI45: FALSE | BJ45: TRUE | BK45: TRUE | BL45: TRUE | BM45: TRUE | BN45: FALSE | BO45: TRUE | BP45: TRUE
A46: f(x) = 1/μ*e-x/μ For x >=0 | B46: Density Function to determine Height of curve, not probability | G46: check | H46: =1/$H$48*EXP(1)^-(H50/$H$48) -> 0.3333333333 | I46: =1/$H$48*EXP(1)^-(I50/$H$48) -> 0.282160575 | J46: =1/$H$48*EXP(1)^-(J50/$H$48) -> 0.2388437702 | K46: =1/$H$48*EXP(1)^-(K50/$H$48) -> 0.2021768866 | L46: =1/$H$48*EXP(1)^-(L50/$H$48) -> 0.1711390397 | M46: =1/$H$48*EXP(1)^-(M50/$H$48) -> 0.1448660695 | N46: =1/$H$48*EXP(1)^-(N50/$H$48) -> 0.1226264804 | O46: =1/$H$48*EXP(1)^-(O50/$H$48) -> 0.1038010746 | P46: =1/$H$48*EXP(1)^-(P50/$H$48) -> 0.08786571271 | Q46: =1/$H$48*EXP(1)^-(Q50/$H$48) -> 0.07437672005 | R46: =1/$H$48*EXP(1)^-(R50/$H$48) -> 0.06295853428 | S46: =1/$H$48*EXP(1)^-(S50/$H$48) -> 0.05329324869 | T46: =1/$H$48*EXP(1)^-(T50/$H$48) -> 0.04511176108 | U46: =1/$H$48*EXP(1)^-(U50/$H$48) -> 0.03818628133 | V46: =1/$H$48*EXP(1)^-(V50/$H$48) -> 0.03232398929 | W46: =1/$H$48*EXP(1)^-(W50/$H$48) -> 0.02736166621 | X46: =1/$H$48*EXP(1)^-(X50/$H$48) -> 0.02316115041 | Y46: =1/$H$48*EXP(1)^-(Y50/$H$48) -> 0.01960549055 | Z46: =1/$H$48*EXP(1)^-(Z50/$H$48) -> 0.01659568946 | AA46: =1/$H$48*EXP(1)^-(AA50/$H$48) -> 0.01404794784 | AB46: =1/$H$48*EXP(1)^-(AB50/$H$48) -> 0.01189133112 | AC46: =1/$H$48*EXP(1)^-(AC50/$H$48) -> 0.01006579447 | AD46: =1/$H$48*EXP(1)^-(AD50/$H$48) -> 0.008520511069 | AE46: =1/$H$48*EXP(1)^-(AE50/$H$48) -> 0.007212456906 | AF46: =1/$H$48*EXP(1)^-(AF50/$H$48) -> 0.006105212963 | AG46: =1/$H$48*EXP(1)^-(AG50/$H$48) -> 0.0051679512 | AH46: =1/$H$48*EXP(1)^-(AH50/$H$48) -> 0.004374576246 | AI46: =1/$H$48*EXP(1)^-(AI50/$H$48) -> 0.003702998846 | AJ46: =1/$H$48*EXP(1)^-(AJ50/$H$48) -> 0.00313452085 | AK46: =1/$H$48*EXP(1)^-(AK50/$H$48) -> 0.002653314616 | AL46: =1/$H$48*EXP(1)^-(AL50/$H$48) -> 0.002245982333 | AM46: =1/$H$48*EXP(1)^-(AM50/$H$48) -> 0.001901182999 | AN46: =1/$H$48*EXP(1)^-(AN50/$H$48) -> 0.001609316665 | AO46: =1/$H$48*EXP(1)^-(AO50/$H$48) -> 0.001362257146 | AP46: =1/$H$48*EXP(1)^-(AP50/$H$48) -> 0.001153125779 | AQ46: =1/$H$48*EXP(1)^-(AQ50/$H$48) -> 0.0009760998983 | AR46: =1/$H$48*EXP(1)^-(AR50/$H$48) -> 0.0008262507256 | AS46: =1/$H$48*EXP(1)^-(AS50/$H$48) -> 0.0006994061394 | AT46: =1/$H$48*EXP(1)^-(AT50/$H$48) -> 0.0005920345152 | AU46: =1/$H$48*EXP(1)^-(AU50/$H$48) -> 0.0005011463977 | AV46: =1/$H$48*EXP(1)^-(AV50/$H$48) -> 0.0004242112671 | AW46: =1/$H$48*EXP(1)^-(AW50/$H$48) -> 0.0003590870851 | AX46: =1/$H$48*EXP(1)^-(AX50/$H$48) -> 0.0003039606552 | AY46: =1/$H$48*EXP(1)^-(AY50/$H$48) -> 0.0002572971397 | AZ46: =1/$H$48*EXP(1)^-(AZ50/$H$48) -> 0.0002177973266 | BA46: =1/$H$48*EXP(1)^-(BA50/$H$48) -> 0.0001843614567 | BB46: =1/$H$48*EXP(1)^-(BB50/$H$48) -> 0.0001560586039 | BC46: =1/$H$48*EXP(1)^-(BC50/$H$48) -> 0.0001321007562 | BD46: =1/$H$48*EXP(1)^-(BD50/$H$48) -> 0.000111820876 | BE46: =1/$H$48*EXP(1)^-(BE50/$H$48) -> 9.465432797e-05 | BF46: =1/$H$48*EXP(1)^-(BF50/$H$48) -> 8.012315881e-05 | BG46: =1/$H$48*EXP(1)^-(BG50/$H$48) -> 6.782278967e-05 | BH46: =1/$H$48*EXP(1)^-(BH50/$H$48) -> 5.741075199e-05 | BI46: =1/$H$48*EXP(1)^-(BI50/$H$48) -> 4.859715237e-05 | BJ46: =1/$H$48*EXP(1)^-(BJ50/$H$48) -> 4.113660136e-05 | BK46: =1/$H$48*EXP(1)^-(BK50/$H$48) -> 3.482138128e-05 | BL46: =1/$H$48*EXP(1)^-(BL50/$H$48) -> 2.947566289e-05 | BM46: =1/$H$48*EXP(1)^-(BM50/$H$48) -> 2.495060996e-05 | BN46: =1/$H$48*EXP(1)^-(BN50/$H$48) -> 2.112023536e-05 | BO46: =1/$H$48*EXP(1)^-(BO50/$H$48) -> 1.787789326e-05 | BP46: =1/$H$48*EXP(1)^-(BP50/$H$48) -> 1.513330992e-05
A47: P(x<=x0) = 1- e-x0/μ | B47: Used to calculate cumulative | G47: mean | H47: =B32/B31 -> 0.05 | I47: hours
A48: ="f(x) = 1/"&H47&" * "&ROUND(EXP(1),4)&"^-(x / "&H47&") = " -> f(x) = 1/0.05 * 2.7183^-(x / 0.05) = | G48: mean | H48: =B32/B31*60 -> 3 | I48: minutes
A49: =" = "&1/H47&" *"&ROUND(EXP(1),4)&"^-"&1/H47&"x" -> = 20 *2.7183^-20x | G49: f(x) | H49: =_xlfn.EXPON.DIST(H50,1/$H$48,0) -> 0.3333333333 | I49: =_xlfn.EXPON.DIST(I50,1/$H$48,0) -> 0.282160575 | J49: =_xlfn.EXPON.DIST(J50,1/$H$48,0) -> 0.2388437702 | K49: =_xlfn.EXPON.DIST(K50,1/$H$48,0) -> 0.2021768866 | L49: =_xlfn.EXPON.DIST(L50,1/$H$48,0) -> 0.1711390397 | M49: =_xlfn.EXPON.DIST(M50,1/$H$48,0) -> 0.1448660695 | N49: =_xlfn.EXPON.DIST(N50,1/$H$48,0) -> 0.1226264804 | O49: =_xlfn.EXPON.DIST(O50,1/$H$48,0) -> 0.1038010746 | P49: =_xlfn.EXPON.DIST(P50,1/$H$48,0) -> 0.08786571271 | Q49: =_xlfn.EXPON.DIST(Q50,1/$H$48,0) -> 0.07437672005 | R49: =_xlfn.EXPON.DIST(R50,1/$H$48,0) -> 0.06295853428 | S49: =_xlfn.EXPON.DIST(S50,1/$H$48,0) -> 0.05329324869 | T49: =_xlfn.EXPON.DIST(T50,1/$H$48,0) -> 0.04511176108 | U49: =_xlfn.EXPON.DIST(U50,1/$H$48,0) -> 0.03818628133 | V49: =_xlfn.EXPON.DIST(V50,1/$H$48,0) -> 0.03232398929 | W49: =_xlfn.EXPON.DIST(W50,1/$H$48,0) -> 0.02736166621 | X49: =_xlfn.EXPON.DIST(X50,1/$H$48,0) -> 0.02316115041 | Y49: =_xlfn.EXPON.DIST(Y50,1/$H$48,0) -> 0.01960549055 | Z49: =_xlfn.EXPON.DIST(Z50,1/$H$48,0) -> 0.01659568946 | AA49: =_xlfn.EXPON.DIST(AA50,1/$H$48,0) -> 0.01404794784 | AB49: =_xlfn.EXPON.DIST(AB50,1/$H$48,0) -> 0.01189133112 | AC49: =_xlfn.EXPON.DIST(AC50,1/$H$48,0) -> 0.01006579447 | AD49: =_xlfn.EXPON.DIST(AD50,1/$H$48,0) -> 0.008520511069 | AE49: =_xlfn.EXPON.DIST(AE50,1/$H$48,0) -> 0.007212456906 | AF49: =_xlfn.EXPON.DIST(AF50,1/$H$48,0) -> 0.006105212963 | AG49: =_xlfn.EXPON.DIST(AG50,1/$H$48,0) -> 0.0051679512 | AH49: =_xlfn.EXPON.DIST(AH50,1/$H$48,0) -> 0.004374576246 | AI49: =_xlfn.EXPON.DIST(AI50,1/$H$48,0) -> 0.003702998846 | AJ49: =_xlfn.EXPON.DIST(AJ50,1/$H$48,0) -> 0.00313452085 | AK49: =_xlfn.EXPON.DIST(AK50,1/$H$48,0) -> 0.002653314616 | AL49: =_xlfn.EXPON.DIST(AL50,1/$H$48,0) -> 0.002245982333 | AM49: =_xlfn.EXPON.DIST(AM50,1/$H$48,0) -> 0.001901182999 | AN49: =_xlfn.EXPON.DIST(AN50,1/$H$48,0) -> 0.001609316665 | AO49: =_xlfn.EXPON.DIST(AO50,1/$H$48,0) -> 0.001362257146 | AP49: =_xlfn.EXPON.DIST(AP50,1/$H$48,0) -> 0.001153125779 | AQ49: =_xlfn.EXPON.DIST(AQ50,1/$H$48,0) -> 0.0009760998983 | AR49: =_xlfn.EXPON.DIST(AR50,1/$H$48,0) -> 0.0008262507256 | AS49: =_xlfn.EXPON.DIST(AS50,1/$H$48,0) -> 0.0006994061394 | AT49: =_xlfn.EXPON.DIST(AT50,1/$H$48,0) -> 0.0005920345152 | AU49: =_xlfn.EXPON.DIST(AU50,1/$H$48,0) -> 0.0005011463977 | AV49: =_xlfn.EXPON.DIST(AV50,1/$H$48,0) -> 0.0004242112671 | AW49: =_xlfn.EXPON.DIST(AW50,1/$H$48,0) -> 0.0003590870851 | AX49: =_xlfn.EXPON.DIST(AX50,1/$H$48,0) -> 0.0003039606552 | AY49: =_xlfn.EXPON.DIST(AY50,1/$H$48,0) -> 0.0002572971397 | AZ49: =_xlfn.EXPON.DIST(AZ50,1/$H$48,0) -> 0.0002177973266 | BA49: =_xlfn.EXPON.DIST(BA50,1/$H$48,0) -> 0.0001843614567 | BB49: =_xlfn.EXPON.DIST(BB50,1/$H$48,0) -> 0.0001560586039 | BC49: =_xlfn.EXPON.DIST(BC50,1/$H$48,0) -> 0.0001321007562 | BD49: =_xlfn.EXPON.DIST(BD50,1/$H$48,0) -> 0.000111820876 | BE49: =_xlfn.EXPON.DIST(BE50,1/$H$48,0) -> 9.465432797e-05 | BF49: =_xlfn.EXPON.DIST(BF50,1/$H$48,0) -> 8.012315881e-05 | BG49: =_xlfn.EXPON.DIST(BG50,1/$H$48,0) -> 6.782278967e-05 | BH49: =_xlfn.EXPON.DIST(BH50,1/$H$48,0) -> 5.741075199e-05 | BI49: =_xlfn.EXPON.DIST(BI50,1/$H$48,0) -> 4.859715237e-05 | BJ49: =_xlfn.EXPON.DIST(BJ50,1/$H$48,0) -> 4.113660136e-05 | BK49: =_xlfn.EXPON.DIST(BK50,1/$H$48,0) -> 3.482138128e-05 | BL49: =_xlfn.EXPON.DIST(BL50,1/$H$48,0) -> 2.947566289e-05 | BM49: =_xlfn.EXPON.DIST(BM50,1/$H$48,0) -> 2.495060996e-05 | BN49: =_xlfn.EXPON.DIST(BN50,1/$H$48,0) -> 2.112023536e-05 | BO49: =_xlfn.EXPON.DIST(BO50,1/$H$48,0) -> 1.787789326e-05 | BP49: =_xlfn.EXPON.DIST(BP50,1/$H$48,0) -> 1.513330992e-05
A50: x | B50: 5 | D50: check | G50: x | H50: 0 | I50: =+H50+0.5 -> 0.5 | J50: 1 | K50: =+J50+0.5 -> 1.5 | L50: 2 | M50: =+L50+0.5 -> 2.5 | N50: 3 | O50: =+N50+0.5 -> 3.5 | P50: 4 | Q50: =+P50+0.5 -> 4.5 | R50: 5 | S50: =+R50+0.5 -> 5.5 | T50: 6 | U50: =+T50+0.5 -> 6.5 | V50: 7 | W50: =+V50+0.5 -> 7.5 | X50: 8 | Y50: =+X50+0.5 -> 8.5 | Z50: 9 | AA50: =+Z50+0.5 -> 9.5 | AB50: 10 | AC50: =+AB50+0.5 -> 10.5 | AD50: 11 | AE50: =+AD50+0.5 -> 11.5 | AF50: 12 | AG50: =+AF50+0.5 -> 12.5 | AH50: 13 | AI50: =+AH50+0.5 -> 13.5 | AJ50: 14 | AK50: =+AJ50+0.5 -> 14.5 | AL50: 15 | AM50: =+AL50+0.5 -> 15.5 | AN50: 16 | AO50: =+AN50+0.5 -> 16.5 | AP50: 17 | AQ50: =+AP50+0.5 -> 17.5 | AR50: 18 | AS50: =+AR50+0.5 -> 18.5 | AT50: 19 | AU50: =+AT50+0.5 -> 19.5 | AV50: 20 | AW50: =+AV50+0.5 -> 20.5 | AX50: 21 | AY50: =+AX50+0.5 -> 21.5 | AZ50: 22 | BA50: =+AZ50+0.5 -> 22.5 | BB50: 23 | BC50: =+BB50+0.5 -> 23.5 | BD50: 24 | BE50: =+BD50+0.5 -> 24.5 | BF50: 25 | BG50: =+BF50+0.5 -> 25.5 | BH50: 26 | BI50: =+BH50+0.5 -> 26.5 | BJ50: 27 | BK50: =+BJ50+0.5 -> 27.5 | BL50: 28 | BM50: =+BL50+0.5 -> 28.5 | BN50: 29 | BO50: =+BN50+0.5 -> 29.5 | BP50: 30
A51: ="P(x<="&B50&")" -> P(x<=5) | B51: =_xlfn.EXPON.DIST(B50,1/B41,1) -> 0.8111243972 | D51: =1-EXP(1)^-(B50/H48) -> 0.8111243972 | E51: =D51=B51 -> TRUE | G51: =A51&" = "&ROUND(B51,4) -> P(x<=5) = 0.8111 | H51: =IF(H50<=$B$50,H49,"") -> 0.3333333333 | I51: =IF(I50<=$B$50,I49,"") -> 0.282160575 | J51: =IF(J50<=$B$50,J49,"") -> 0.2388437702 | K51: =IF(K50<=$B$50,K49,"") -> 0.2021768866 | L51: =IF(L50<=$B$50,L49,"") -> 0.1711390397 | M51: =IF(M50<=$B$50,M49,"") -> 0.1448660695 | N51: =IF(N50<=$B$50,N49,"") -> 0.1226264804 | O51: =IF(O50<=$B$50,O49,"") -> 0.1038010746 | P51: =IF(P50<=$B$50,P49,"") -> 0.08786571271 | Q51: =IF(Q50<=$B$50,Q49,"") -> 0.07437672005 | R51: =IF(R50<=$B$50,R49,"") -> 0.06295853428 | S51: =IF(S50<=$B$50,S49,"") ->  | T51: =IF(T50<=$B$50,T49,"") ->  | U51: =IF(U50<=$B$50,U49,"") ->  | V51: =IF(V50<=$B$50,V49,"") ->  | W51: =IF(W50<=$B$50,W49,"") ->  | X51: =IF(X50<=$B$50,X49,"") ->  | Y51: =IF(Y50<=$B$50,Y49,"") ->  | Z51: =IF(Z50<=$B$50,Z49,"") ->  | AA51: =IF(AA50<=$B$50,AA49,"") ->  | AB51: =IF(AB50<=$B$50,AB49,"") ->  | AC51: =IF(AC50<=$B$50,AC49,"") ->  | AD51: =IF(AD50<=$B$50,AD49,"") ->  | AE51: =IF(AE50<=$B$50,AE49,"") ->  | AF51: =IF(AF50<=$B$50,AF49,"") ->  | AG51: =IF(AG50<=$B$50,AG49,"") ->  | AH51: =IF(AH50<=$B$50,AH49,"") ->  | AI51: =IF(AI50<=$B$50,AI49,"") ->  | AJ51: =IF(AJ50<=$B$50,AJ49,"") ->  | AK51: =IF(AK50<=$B$50,AK49,"") ->  | AL51: =IF(AL50<=$B$50,AL49,"") ->  | AM51: =IF(AM50<=$B$50,AM49,"") ->  | AN51: =IF(AN50<=$B$50,AN49,"") ->  | AO51: =IF(AO50<=$B$50,AO49,"") ->  | AP51: =IF(AP50<=$B$50,AP49,"") ->  | AQ51: =IF(AQ50<=$B$50,AQ49,"") ->  | AR51: =IF(AR50<=$B$50,AR49,"") ->  | AS51: =IF(AS50<=$B$50,AS49,"") ->  | AT51: =IF(AT50<=$B$50,AT49,"") ->  | AU51: =IF(AU50<=$B$50,AU49,"") ->  | AV51: =IF(AV50<=$B$50,AV49,"") ->  | AW51: =IF(AW50<=$B$50,AW49,"") ->  | AX51: =IF(AX50<=$B$50,AX49,"") ->  | AY51: =IF(AY50<=$B$50,AY49,"") ->  | AZ51: =IF(AZ50<=$B$50,AZ49,"") ->  | BA51: =IF(BA50<=$B$50,BA49,"") ->  | BB51: =IF(BB50<=$B$50,BB49,"") ->  | BC51: =IF(BC50<=$B$50,BC49,"") ->  | BD51: =IF(BD50<=$B$50,BD49,"") ->  | BE51: =IF(BE50<=$B$50,BE49,"") ->  | BF51: =IF(BF50<=$B$50,BF49,"") ->  | BG51: =IF(BG50<=$B$50,BG49,"") ->  | BH51: =IF(BH50<=$B$50,BH49,"") ->  | BI51: =IF(BI50<=$B$50,BI49,"") ->  | BJ51: =IF(BJ50<=$B$50,BJ49,"") ->  | BK51: =IF(BK50<=$B$50,BK49,"") ->  | BL51: =IF(BL50<=$B$50,BL49,"") ->  | BM51: =IF(BM50<=$B$50,BM49,"") ->  | BN51: =IF(BN50<=$B$50,BN49,"") ->  | BO51: =IF(BO50<=$B$50,BO49,"") ->  | BP51: =IF(BP50<=$B$50,BP49,"") -> 

Sheet P&E(2)
A1: Web Site Visits
A2: # visits per minute | B2: 8
A3: Time interval | B3: 1 | C3: minute | D3: 60 | E3: seconds
A4: Follows Poisson Probability Distribution
A5: Mean time Between Visits | C5: minutes
A7: Poisson f(x) | B7: f(x) = (μxe-μ)/x! | C7: Hieght and probability
B8: ="f(x) = ("&B2&"^x * e^-"&B2&")/X!" -> f(x) = (8^x * e^-8)/X!
A9: where mew for Poisson =
A11: Exponetial f(x) | B11: f(x) = 1/μ*e-x/μ For x >=0 | C11: Height
B12: ="f(x) = "&1/B5&" * e"&"^-("&1/B5&"x)" -> 
B13: P(x<=x0) = 1- e-x0/μ | C13: Cumulative Prob | E13: X0 is upper end
B14: ="1 - e^-"&1/B5&"x0" -> 
A15: where mew for Exponential =
A17: Poisson
A18: Mean = | B18: =B2 -> 8
A19: x | B19: 0 | F19: check
A20: ="P(x="&B19&")" -> P(x=0) | F20: =(B18^B19*EXP(1)^-B18)/FACT(B19) -> 0.0003354626279 | G20: =F20=B20 -> FALSE
A22: New Mean
A23: New Time Interval | B23: 25 | C23: seconds
A24: x | B24: 0 | F24: check
A25: ="P(x="&B24&")" -> P(x=0) | F25: =(B22^B24*EXP(1)^-B22)/FACT(B24) ->  | G25: =F25=B25 -> 
A27: Exponential
A28: Mean | B28: =B3/B2 -> 0.125 | C28: Time (minutes) between visits
A29: x | B29: =1/4 -> 0.25 | C29: Time (minutes) between visits | F29: check
A30: ="P(x<="&B29&")" -> P(x<=0.25) | F30: =1-EXP(1)^-(B29/B28) -> 0.8646647168 | G30: =F30=B30 -> FALSE

Sheet P&E(2an)
A1: Web Site Visits
A2: # visits per minute | B2: 8
A3: Time interval | B3: 1 | C3: minute | D3: 60 | E3: seconds
A4: Follows Poisson Probability Distribution
A5: Mean time Between Visits | B5: =B3/B2 -> 0.125 | C5: minutes
A7: Poisson f(x) | B7: f(x) = (μxe-μ)/x! | C7: Hieght and probability
B8: ="f(x) = ("&B2&"^x * e^-"&B2&")/X!" -> f(x) = (8^x * e^-8)/X!
A9: where mew for Poisson = | B9: =B2 -> 8
A11: Exponetial f(x) | B11: f(x) = 1/μ*e-x/μ For x >=0 | C11: Height
B12: ="f(x) = "&1/B5&" * e"&"^-("&1/B5&"x)" -> f(x) = 8 * e^-(8x)
B13: P(x<=x0) = 1- e-x0/μ | C13: Cumulative Prob | E13: X0 is upper end
B14: ="1 - e^-"&1/B5&"x0" -> 1 - e^-8x0
A15: where mew for Exponential = | B15: =B5 -> 0.125
A17: Poisson
A18: Mean = | B18: =B2 -> 8
A19: x | B19: 0 | F19: check
A20: ="P(x="&B19&")" -> P(x=0) | B20: =_xlfn.POISSON.DIST(B19,B18,0) -> 0.0003354626279 | F20: =(B18^B19*EXP(1)^-B18)/FACT(B19) -> 0.0003354626279 | G20: =F20=B20 -> TRUE
A22: New Mean | B22: =B23/60*B18 -> 3.333333333
A23: New Time Interval | B23: 25 | C23: seconds
A24: x | B24: 0 | F24: check
A25: ="P(x="&B24&")" -> P(x=0) | B25: =_xlfn.POISSON.DIST(B24,B22,0) -> 0.03567399335 | F25: =(B22^B24*EXP(1)^-B22)/FACT(B24) -> 0.03567399335 | G25: =F25=B25 -> TRUE
A27: Exponential
A28: Mean | B28: =B3/B2 -> 0.125 | C28: Time (minutes) between visits
A29: x | B29: =1/4 -> 0.25 | C29: Time (minutes) between visits | F29: check
A30: ="P(x<="&B29&")" -> P(x<=0.25) | B30: =_xlfn.EXPON.DIST(B29,1/B28,1) -> 0.8646647168 | F30: =1-EXP(1)^-(B29/B28) -> 0.8646647168 | G30: =F30=B30 -> TRUE

Sheet P&E3
B1: interruptions at work | C1: 6
B2: Time interval | C2: 1 | D2: hour
B4: New Mean | C4: =C1*C6 -> 1.5 | D4: # interuptions
B5: New Time | C5: 15 | D5: minutes
B6: New Time | C6: =C5/60 -> 0.25 | D6: hours
A8: b | B8: Poisson
B9: x | C9: 0 | D9: ="# interruptions per "&C5&" "&D5 -> # interruptions per 15 minutes
B10: ="P(x="&C9&")" -> P(x=0) | C10: =_xlfn.POISSON.DIST(C9,C4,0) -> 0.2231301601
A12: c | B12: Exponetial
B13: Mean | C13: =C5/C4 -> 10 | D13: Time (minutes) between interuptions
B14: x | C14: 10 | D14: minutes between interuptions
B15: ="P(x<="&C14&")" -> P(x<=10) | C15: =_xlfn.EXPON.DIST(C14,1/C13,1) -> 0.6321205588
